Workbook

Sheet Indice
B1: Sociedad: | C1: FRIGORIFICO CONCEPCION S.A.
S2: 1 | T2: Enero
S3: 2 | T3: Febrero
S4: 3 | T4: Marzo
S5: 4 | T5: Abril
A6: Fecha Presentación: | B6: 2020-06-30 | S6: 5 | T6: Mayo
S7: 7 | T7: Julio
C8: INDICE | D8: REF. | S8: 8 | T8: Agosto
B9: Informacion General | S9: 9 | T9: Septiembre
C10: Descripción de la naturaleza y del negocio de la Sociedad | D10: Nota 1 | S10: 10 | T10: Octubre
C11: Resumen de las principales políticas contables | D11: Nota 2 | S11: 11 | T11: Noviembre
B12: Balance General | D12: BG | S12: 12 | T12: Diciembre
C13: Efectivo y equivalente de efectivo | D13: Nota 3
C14: Inversiones temporales | D14: Nota 4
C15: Cuentas por cobrar comerciales | D15: Nota 5
C16: Otros créditos | D16: Nota 6
C17: Cuentas por cobrar comerciales | D17: Nota 5
C18: Inventarios | D18: Nota 7
C19: Inversión en asociadas | D19: Nota 8
C20: Propiedades, planta y equipo | D20: Nota 9
C21: Activos disponibles para la venta | D21: Nota 10
C22: Activos intangibles | D22: Nota 11
C23: Propiedades de inversión | D23: Nota 12
C24: Cuentas por pagar comerciales | D24: Nota 13
C25: Préstamos a corto plazo | D25: Nota 14
C26: Porción corriente de la deuda a largo plazo | D26: Nota 15
C27: Remuneraciones y cargas sociales a pagar | D27: Nota 16
C28: Impuestos a pagar | D28: Nota 17
C29: Provisiones | D29: Nota 18
C30: Otros pasivos corrientes | D30: Nota 19
C31: Prestamos a largo plazo | D31: Nota 14
C32: Otros pasivos no corrientes | D32: Nota 19
C33: Capital integrado | D33: Nota 20
C34: Reserva de revalúo | D34: Nota 21
C35: Reserva legal | D35: Nota 21
C36: Reservas estatutarias | D36: Nota 21
C37: Reservas facultativas | D37: Nota 21
C38: Diferencia transitoria por conversión | D38: Nota 22
C39: Resultados acumulados | D39: Nota 23
C40: Interés minoritario | D40: Nota 24
B41: Estado de Resultados | D41: ER
C42: Ventas | D42: Nota 25
C43: Costo de ventas | D43: Nota 26
C44: Gastos de ventas | D44: Nota 27
C45: Gastos administrativos | D45: Nota 27
C46: Otros ingresos y gastos operativos | D46: Nota 28
C47: Ingresos financieros - neto | D47: Nota 29
C48: Gastos financieros - neto | D48: Nota 29
C49: Resultado de inversiones en asociadas | D49: Nota 30
C50: Resultado participación minoritaria | D50: Nota 31
C51: Impuesto a la renta | D51: Nota 32
C52: Resultado extraordinario neto de impuesto a la renta | D52: Nota 33
C53: Resultado sobre actividades discontinuadas neto de impuesto a la renta | D53: Nota 34
C54: Utilidad/(Pérdida) neta del año | D54: Nota 35
C55: Utilidad neta por acción ordinaria | D55: Nota 35
B56: Estado de Evolución del Patrimonio Neto | D56: EVPN
B57: Estado de Flujos de Efectivo | D57: EFE
B58: Otras Notas de los Estados Financieros
C59: Activos gravados | D59: Nota 36
C60: Contingencias y compromisos | D60: Nota 37
C61: Impuesto diferido | D61: Nota 38
C62: Hechos posteriores | D62: Nota 39
C63: Saldos y transacciones con partes relacionadas | D63: Nota 40
B65: FIRMANTES
B67: Presidente | C67: Jair Antonio de Lima
B68: Vicepresidente | C68: Pedro Cassildo Pascutti
B69: Gerente de Contabilidad | C69: Lic. Delia S. Brítez E.

Sheet BG
D1: =Indice!C1 -> FRIGORIFICO CONCEPCION S.A. | E1: Indice
A3: BALANCE GENERAL
A4: Al 30 de junio de 2020
A5: (Cifras expresadas en guaraníes)
E7: Nota | F7: =+Indice!B6 -> 2020-06-30 | G7: 2019-12-31
B8: ACTIVOS
B9: Activos Corrientes
C10: Efectivo y equivalente de efectivo | E10: 3 | F10: ='Nota 3'!C16 -> 66667756651 | G10: ='Nota 3'!D16 -> 10161228621
C11: Inversiones temporales | E11: 4 | F11: ='Nota 4'!B19 -> 0 | G11: ='Nota 4'!C19 -> 0
C12: Cuentas por cobrar comerciales | E12: 5 | F12: ='Nota 5'!C14 -> 595833879752 | G12: ='Nota 5'!D14 -> 438936295945
C13: Otros créditos | E13: 6 | F13: ='Nota 6'!B19 -> 111536946821 | G13: ='Nota 6'!C19 -> 85808260245
C14: Inventarios | E14: 7 | F14: ='Nota 7'!B15 -> 418467076205 | G14: ='Nota 7'!C15 -> 387659100060
C15: Total activos corrientes | F15: =SUM(F10:F14) -> 1192505659429 | G15: =SUM(G10:G14) -> 922564884871
B16: Activos no Corrientes
C17: Otros créditos | E17: 6 | F17: ='Nota 6'!F19 -> 212145734771 | G17: ='Nota 6'!G19 -> 126103451182
C18: Cuentas por cobrar comerciales | E18: 5 | F18: ='Nota 5'!C23 -> 1901294139 | G18: ='Nota 5'!D23 -> 1901294139
C19: Inversión en asociadas | E19: 8 | F19: ='Nota 8'!B8 -> 30056300 | G19: ='Nota 8'!C8 -> 30056300
C20: Propiedades, planta y equipo/Bienes de uso, neto | E20: 9 | F20: ='Nota 9'!L31 -> 3.099604224e+11 | G20: ='Nota 9'!M31 -> 314484085187
C21: Activos disponibles para la venta | E21: 10 | F21: ='Nota 10'!B20 -> 0 | G21: ='Nota 10'!C20 -> 0
C22: Activos intangibles | E22: 11 | F22: ='Nota 11'!B12 -> 0 | G22: ='Nota 11'!C12 -> 0
C23: Propiedades de Inversión | E23: 12 | F23: ='Nota 12'!B10 -> 46929360000 | G23: ='Nota 12'!C10 -> 46929360000
C24: Total activos no corrientes | F24: =SUM(F17:F23) -> 5.709668676e+11 | G24: =SUM(G17:G23) -> 489448246808
B25: Total Activos | F25: =+F15+F24 -> 1.763472527e+12 | G25: =+G15+G24 -> 1412013131679
B26: PASIVOS Y PATRIMONIO NETO
B27: Pasivos corrientes | F27: -1
C28: Cuentas por pagar comerciales | E28: 13 | F28: ='Nota 13'!D13 -> 93336271366 | G28: ='Nota 13'!E13 -> 71476210719
C29: Préstamos a corto plazo | E29: 14 | F29: ='Nota 14'!E50 -> 5.980120529e+10 | G29: ='Nota 14'!K50 -> 2.539412595e+11
C30: Porción corriente de la deuda a largo plazo | E30: 15 | F30: ='Nota 15'!B15 -> 78442992418 | G30: ='Nota 15'!C15 -> 2.120613531e+11
C31: Remuneraciones y cargas sociales a pagar | E31: 16 | F31: ='Nota 16'!B12 -> 3338431778 | G31: ='Nota 16'!C12 -> 1002922187
C32: Impuestos a pagar | E32: 17 | F32: ='Nota 17'!B12 -> 10908671085 | G32: ='Nota 17'!C12 -> 4165070386
C33: Provisiones | E33: 18 | F33: ='Nota 18'!B13 -> 0 | G33: ='Nota 18'!C13 -> 0
C34: Otros pasivos corrientes | E34: 19 | F34: ='Nota 19'!B14 -> 24880474225 | G34: ='Nota 19'!C14 -> 9384946631
C35: Total Pasivos Corrientes | F35: =+F28+F29+F30+F31+F32+F34 -> 2.707080462e+11 | G35: =+G28+G29+G30+G31+G32+G34 -> 5.520317625e+11
B36: Pasivos no corrientes
C37: Préstamos a largo plazo | E37: 14 | F37: ='Nota 14'!E91 -> 752399518628 | G37: ='Nota 14'!K91 -> 2.177944467e+11
C38: Otros pasivos no corrientes | E38: 19 | F38: ='Nota 19'!F14 -> 10003822688 | G38: ='Nota 19'!G14 -> 10003822688
C39: Total pasivos no corrientes | F39: =SUM(F37:F38) -> 762403341316 | G39: =SUM(G37:G38) -> 2.277982694e+11
B41: Total Pasivos | F41: =+F35+F39 -> 1.033111387e+12 | G41: =+G35+G39 -> 7.798300319e+11
B42: Patrimonio Neto
C43: Capital integrado | E43: 20 | F43: ='Nota 20'!B11 -> 386400000000 | G43: ='Nota 20'!C11 -> 386400000000
C44: Reserva de revalúo | E44: 21 | F44: =' Nota 21'!B8 -> 61543828060 | G44: =' Nota 21'!C8 -> 61543828060
C45: Reserva legal | E45: 21 | F45: =' Nota 21'!B13 -> 24610112891 | G45: =' Nota 21'!C13 -> 24610112891
C46: Reservas estatutarias | E46: 21 | F46: =' Nota 21'!B17 -> 0 | G46: =' Nota 21'!C17 -> 0
C47: Reservas facultatitvas | E47: 21 | F47: =' Nota 21'!B21 -> 0 | G47: =' Nota 21'!C21 -> 0
C48: Reservas especiales | E48: 21 | F48: =' Nota 21'!B29 -> 90034404188 | G48: =' Nota 21'!C29 -> 90034404188
C49: Diferencia transitoria por conversión | E49: 22 | F49: ='Nota 22'!B9 -> - | G49: ='Nota 22'!C9 -> -
C50: Resultados acumulados | E50: 23 | F50: ='Nota 23'!B8 -> 69594754634 | G50: ='Nota 23'!C8 -> 48458148
C51: Resultado del ejercicio | E51: 23 | F51: ='Nota 23'!B9 -> 98178039763 | G51: ='Nota 23'!C9 -> 69546296486
C52: Subtotal | F52: =SUM(F43:F51) -> 730361139536 | G52: =SUM(G43:G51) -> 632183099773
C53: Interés minoritario | E53: 24 | F53: ='Nota 24'!B8 -> - | G53: ='Nota 24'!C8 -> -
B54: Total Patrimonio Neto | F54: =SUM(F43:F51) -> 730361139536 | G54: =SUM(G43:G51) -> 632183099773
B55: Total Pasivos y Patrimonio Neto | F55: =+F41+F54 -> 1.763472527e+12 | G55: =+G41+G54 -> 1.412013132e+12
B57: Las notas que se acompañan forman parte integrante de estos estados.

Sheet ER
A1: =Indice!C1 -> FRIGORIFICO CONCEPCION S.A. | B1: Indice | D1: =ER!A4 -> 
A7: ESTADO DE RESULTADOS
A8: Al 30 de junio de 2020
A9: Comparativo con igual período del año anterior
A10: (Cifras expresadas en guaraníes)
B12: Nota | C12: =+BG!F7 -> 2020-06-30 | D12: 2019-06-30
A13: Ventas | B13: 25 | C13: ='Nota 25'!B11 -> 1293593136565 | D13: ='Nota 25'!C11 -> 679343752421
A14: Costo de ventas | B14: 26 | C14: =-'Nota 26'!B14 -> -1072126443053 | D14: =-'Nota 26'!C14 -> -594354201998
A15: Utilidad bruta | C15: =C13+C14 -> 221466693512 | D15: =D13+D14 -> 84989550423
A16: Gastos de ventas | B16: 27 | C16: =-'Nota 27'!B36 -> -29662625406 | D16: =-'Nota 27'!E36 -> -15981169391
A17: Gastos administrativos | B17: 27 | C17: =-'Nota 27'!C36 -> -27479638223 | D17: =-'Nota 27'!F36 -> -29213621200
A18: Otros ingresos y gastos operativos | B18: 28 | C18: =+'Nota 28'!B10-'Nota 28'!F10 -> 5786712378 | D18: =+'Nota 28'!C10-'Nota 28'!G10 -> 887101315
A19: Resultado operativo | C19: =SUM(C15:C18) -> 170111142261 | D19: =SUM(D15:D18) -> 40681861147
A20: Ingresos financieros - neto | B20: 29 | C20: - | D20: -
A21: Gastos financieros - neto | B21: 29 | C21: =-'Nota 29'!F13 -> -61024431413 | D21: =-'Nota 29'!G13 -> -36572870868
A22: Subtotal | C22: =SUM(C20:C21) -> -61024431413 | D22: =SUM(D20:D21) -> -36572870868
A23: Resultado de inversiones en asociadas | B23: 30 | C23: - | D23: -
A24: Resultados ordinarios antes de impuesto a la renta y participación minoritaria | C24: =+C19+C22 -> 109086710848 | D24: =+D19+D22 -> 4108990279
A25: Resultado participación minoritaria | B25: 31 | C25: - | D25: -
A26: Resultado ordinario antes del impuesto a la renta
A27: Impuesto a la renta | B27: 32 | C27: =-'Nota 32'!B9 -> -10908671085 | D27: =-'Nota 32'!C9 -> -1275961664
A28: Resultado neto de actividades ordinarias | C28: =C26+C27 -> -10908671085 | D28: =D26+D27 -> -1275961664
A29: Resultado extraordinario neto de impuesto a la renta | B29: 33 | C29: =-'Nota 32'!B9 -> -10908671085 | D29: =+D28 -> -1275961664
A30: Resultado sobre actividades discontinuadas neto de impuesto a la renta | B30: 34 | C30: - | D30: -
A31: Utilidad neta del año | C31: =+C24+C29 -> 98178039763 | D31: =+D24+D29 -> 2833028615
A32: Utilidad neta por acción ordinaria | B32: 35 | C32: - | D32: -
A35: Las notas que se acompañan forman parte integrante de estos estados.

Sheet EVPN
A1: FRIGORIFICO CONCEPCION S.A. | F1: Indice
A4: ESTADO DE EVOLUCIÓN DEL PATRIMONIO NETO
A5: Al 30 de junio de 2020
A6: Comparativo con igual periodo del año anterior
A7: (Cifras expresadas en guaraníes)
C10: Aporte de los propietarios | J10: Ganancias reservadas
C11: Capital | D11: Aporte para | F11: Reserva de revalúo | H11: Reserva Especiales | J11: Reserva legal | L11: Reserva facultativa | N11: Resultados acumulados | P11: Resultados del período | R11: Total
D12: aumento de capital | N12: Total
A14: Saldo al 30 de junio de 2019 | C14: 386400000000 | F14: 55321309200 | H14: 90034404188 | J14: 20949781497 | L14: 0 | N14: 48458148 | P14: 2833028615 | R14: =+C14+F14+H14+J14+N14+P14 -> 555586981648
A15: Cambio en política contable (Nota….)
A16: Transferencia a resultados acumulados | C16: 0 | F16: 0 | H16: 0 | J16: 0 | L16: 0 | N16: 0 | P16: 0 | R16: 0
A17: Distribución de dividendos s/Acta de Asamblea Ordinaria N°… de fecha………
A18: Capitalización de resultados acumulados | C18: 0 | F18: 0 | H18: 0 | J18: 0 | L18: 0 | N18: 0 | P18: 0 | R18: =+C18+F18+H18+J18+N18+P18 -> 0
A19: Aprobado en Acta de Asamblea Ordinaria N° 29 de fecha 2 de mayo de 2019
A20: Revalúo de activos fijos | C20: 0 | F20: 6222518860 | H20: 0 | J20: 0 | L20: 0 | N20: 0 | P20: 0 | R20: =SUM(C20:P20) -> 6222518860
A21: Reservas Especiales | C21: 0 | F21: 0 | H21: 0 | J21: 0 | L21: 0 | N21: 0 | P21: 0 | R21: =SUM(C21:P21) -> 0
A22: Reserva Legal | C22: 0 | F22: 0 | H22: 0 | J22: 3660331394 | L22: 0 | N22: 0 | P22: -3660331394 | R22: 0
A23: Resultado del año | C23: 0 | F23: 0 | H23: 0 | J23: 0 | L23: 0 | N23: 0 | P23: 70373599265 | R23: =SUM(C23:P23) -> 70373599265
A25: Saldo al 31 de diciembre de 2019 | C25: =+C14+C18 -> 386400000000 | D25: =SUM(D14:D23) -> 0 | F25: =SUM(F14:F23) -> 61543828060 | H25: =SUM(H14:H23) -> 90034404188 | J25: =SUM(J14:J23) -> 24610112891 | L25: =L16+L17+L18+L19+L20+L21+L23 -> 0 | N25: =SUM(N14:N23) -> 48458148 | P25: =SUM(P14:P23) -> 69546296486 | R25: =+C25+F25+H25+J25+N25+P25 -> 632183099773
A26: Cambio en política contable (Nota….)
A27: Transferencia a resultados acumulados | C27: 0 | F27: 0 | H27: 0 | J27: 0 | L27: 0 | N27: 69546296486 | P27: -69546296486 | R27: =+C27+F27+H27+J27+N27+P27 -> 0
A28: Distribución de dividendos s/Acta de Asamblea General Ordinaria N°… de fecha………
A29: Capitalización de resultados acumulados | C29: 0 | F29: 0 | H29: 0 | J29: 0 | L29: 0 | N29: 0 | P29: 0 | R29: =+C29+F29+H29+J29+N29+P29 -> 0
A30: Reducción del capital social s/Acta de Asamblea General Ordinaria N°… de fecha……..
A31: Revalúo de activos fijos | C31: 0 | F31: 0 | H31: 0 | J31: 0 | L31: 0 | N31: 0 | P31: 0 | R31: =+C31+F31+H31+J31+N31+P31 -> 0
A32: Desafectación de la reserva de revalúo técnico
A33: Reservas Especiales | C33: 0 | F33: 0 | H33: 0 | J33: 0 | L33: 0 | N33: 0 | P33: 0 | R33: =+C33+F33+H33+J33+N33+P33 -> 0
A34: Reserva Legal | C34: 0 | F34: 0 | H34: 0 | J34: 0 | L34: 0 | N34: 0 | P34: 0 | R34: =+C34+F34+H34+J34+N34+P34 -> 0
A35: Resultado del año | C35: 0 | F35: 0 | H35: 0 | J35: 0 | L35: 0 | N35: 0 | P35: =+ER!C31 -> 98178039763 | R35: =+C35+F35+H35+J35+N35+P35 -> 98178039763
A37: Saldo al 30 de junio de 2020 | C37: =C25+C28+C31+C32+C35 -> 386400000000 | D37: =SUM(D25:D35) -> 0 | F37: =F25+F28+F31+F32+F35 -> 61543828060 | H37: =H25+H28+H31+H32+H35 -> 90034404188 | J37: =SUM(J25:J35) -> 24610112891 | L37: =L25+L28+L31+L32+L35 -> 0 | N37: =SUM(N25:N35) -> 69594754634 | P37: =SUM(P25:P35) -> 98178039763 | R37: =R25+R28+R31+R32+R35 -> 730361139536
A39: Las notas que se acompañan forman parte integrante de estos estados.

Sheet EFE
A1: =Indice!C1 -> FRIGORIFICO CONCEPCION S.A.
A5: ESTADO DE FLUJOS DE EFECTIVO (Método directo)
A6: Al 30 de junio de 2020
A7: Comparativo con igual periodo del año anterior
A8: (Cifras expresadas en guaraníes)
B11: =+BG!F7 -> 2020-06-30 | C11: 2019-06-30
A13: FLUJO DE EFECTIVO DE ACTIVIDADES OPERATIVAS
A14: Cobranzas efectuadas a clientes | B14: 994116606448 | C14: 677884932123
A15: Pagos efectuados a proveedores y empleados | B15: -1114239629658 | C15: =-574649226843+7554631562 -> -567094595281
A16: Efectivo generado por las operaciones | B16: =+B14+B15 -> -120123023210 | C16: =+C14+C15 -> 110790336842
A17: Intereses pagados | B17: - | C17: -
A18: Otros ingresos y (egresos) - neto | B18: 5786712378 | C18: 887101315
A19: Pagos de impuesto a la renta | B19: - | C19: -
A20: Flujo neto de efectivo de actividades operativas | B20: =+B16+B18 -> -114336310832 | C20: =+C16+C18 -> 111677438157
A22: FLUJO DE EFECTIVO DE ACTIVIDADES DE INVERSIÓN
A23: Adquisición de bienes de uso | B23: -3280676869 | C23: -970356087
A24: Adquisición de bienes Curtiembre - fideicomitida
A25: Ventas de activos fijos | B25: 0 | C25: 0
A26: Ventas de bienes de uso | B26: - | C26: -
A27: Intereses cobrados sobre inversiones | B27: - | C27: -
A28: Aquisición de inversiones | B28: - | C28: -
A29: Flujo neto de efectivo de actividades de inversión | B29: =SUM(B23:B28) -> -3280676869 | C29: =SUM(C23:C28) -> -970356087
A31: FLUJO DE EFECTIVO DE ACTIVIDADES DE FINANCIACIÓN
A32: (Disminución) Incremento de préstamos | B32: -410456586535 | C32: -53734949918
A33: Intereses pagados y gastos bancarios | B33: -8722471671 | C33: -21860567318
A34: (Pagos) Colocaciones de Bonos Bursátiles | B34: 615047867430 | C34: -30392300166
A35: Aportes de capital recibidos | B35: - | C35: -
A36: Dividendos pagados | B36: - | C36: -
A37: Flujo neto de efectivo de actividades de financiamiento | B37: =SUM(B32:B36) -> 195868809224 | C37: =SUM(C32:C36) -> -105987817402
A39: (Disminución) Incremento neto de efectivo | B39: =+B20+B29+B37 -> 78251821523 | C39: =+C20+C29+C37 -> 4719264668
A40: Efecto estimado de la diferencia de cambio sobre el saldo de efectivo | B40: -21745293493 | C40: -7554631562
A41: Efectivo al principio del año | B41: 10161228621 | C41: 7958513123
A43: Efectivo al final del periodo | B43: =+SUM(B39:B41) -> 66667756651 | C43: =+SUM(C39:C41) -> 5123146229
A45: Las notas que se acompañan forman parte integrante de estos estados.

Sheet Nota1
A1: =Indice!C1 -> FRIGORIFICO CONCEPCION S.A. | I1: BG
A6: NOTAS A LOS ESTADOS FINANCIEROS CORRESPONDIENTES AL PERIODO TERMINADO | H6: AL 30 DE JUNIO DE 2020
A7: Presentadas en forma comparativa con el periodo terminado | F7: al 31 de diciembre de 2019
A9: NOTA 1 – DESCRIPCIÓN DE LA NATURALEZA Y DEL NEGOCIO DE LA COMPAÑÍA
A10: Antecedentes de la sociedad: naturaleza jurídica, antecedentes sobre la constitución de la sociedad y reformas estatutarias, actividad principal y secundarias.
A12: La Sociedad fue constituida originalmente con la denominación “Nelore Importadora y Exportadora S.R.L.” el 28 de agosto de 1997 según Escritura Pública Nº 70, inscripta en el Registro Público de Comercio, bajo el N° 490, folio 4596 y siguientes de la sección Contratos con fecha 5 de setiembre de 1997.
A14: Posteriormente, en fecha 25 de setiembre de 1998 según Escritura Pública N° 134, se cambió la denominación a Frigorífico Concepción S.R.L., lo cual fue inscripto en el Registro Público de Comercio bajo el N° 608, folio 5216 y siguientes con fecha 13 de octubre de 1998.
A16: Finalmente en fecha 2 de agosto de 2001 según Escritura Pública N° 68, se decidió transformar la personería jurídica de Sociedad de Responsabilidad Limitada a Sociedad Anónima.
A18: La Sociedad se dedica principalmente a la compra y procesamiento de ganado vacuno, y a la comercialización de carnes tanto en el mercado local como en el exterior.
A20: Según Escritura Pública N° 46, de fecha 25 de junio de 2008, la Sociedad también puede emitir Títulos - Valores que podrán ser negociados a través de la Bolsa de Valores y Prroductos de Asunción S.A. previa autorización de la Comisión Nacional de Valores y de conformidad a las leyes que regulan la materia.

Sheet Nota 2
A1: =Indice!C1 -> FRIGORIFICO CONCEPCION S.A. | I1: BG
A3: NOTA 2 - RESUMEN DE LAS PRINCIPALES POLÍTICAS CONTABLES
A5: Los estados financieros han sido preparados de acuerdo con las normas contables y criterios de valuación dictados por la Comisión Nacional de Valores y con Normas de Información Financiera emitidas por el Consejo de Contadores Públicos del Paraguay y se presentan en forma comparativa con los del periodo anterior, los cuales han sido reclasificados para facilitar su comparabilidad.
A7: Los presentes estados financieros se exponen siguiendo los lineamientos de presentación establecidos en las normas de la Comisión Nacional de Valores al solo efecto de su presentación ante dicho organismo de control.
A9: A continuación se resumen las políticas de contabilidad más significativas aplicadas por la Sociedad:
A11: a. Bases de contabilización (Según NIF Bases de preparación de los Estados Financieros)
A13: Los estados financieros se expresan en Guaraníes y se han preparado sobre la base de costos históricos (excepto por el revalúo de los bienes de uso y de los bienes en fideicomiso y por el tratamiento asignado a los activos y pasivos en moneda extranjera) y no reconocen en forma integral los efectos de la inflación sobre la situación patrimonial de la Sociedad, en los resultados de las operaciones y en sus flujos de efectivo, en atención a que la corrección monetaria no constituye una práctica contable aceptada en el Paraguay. Según el índice general de precios al consumidor publicado por el Banco Central del Paraguay, la inflación acumulada al 30 de junio de 2020 y 31 de diciembre de 2019 fue del 0,8% y 5,8 % respectivamente.
A15: b. Moneda extranjera
A17: Los activos y pasivos en moneda extranjera (totalmente en dólares estadounidenses) se valuaron al tipo de cambio comprador y vendedor vigente a la fecha de cierre del periodo para activos y pasivos respectivamente (US$ 1 = Gs. 6.794 para activos y US$ 1 = Gs. 6.820 para pasivos al 30 de junio de 2020 y US$ 1 = Gs. 6.442para activos y US$ 1 = Gs. 6.464 para pasivos al 31 de diciembre de 2019). Las diferencias de cambio originadas por fluctuaciones en los tipos de cambio, entre las fechas de concertación de las operaciones y su liquidación o valuación al cierre del periodo, son reconocidas en resultados de cada periodo en el que se producen.
C19: 2020-06-30 | G19: 2019-12-31
B20: Indicar moneda | C20: Simbología según ISO 4217 | D20: Miles de G. | F20: Indicar moneda | G20: Simbología según ISO 4217 | H20: Miles de G.
A21: Activos | B21: Dólares | C21: USD | D21: 6794 | F21: Dólares | G21: USD | H21: 6572
A22: Pasivos | B22: Dólares | C22: USD | D22: 6820 | F22: Dólares | G22: USD | H22: 6464
A24: Posición neta | D24: =+D21-D22 -> -26 | H24: =+H21-H22 -> 108
A26: c. Deterioro
A27: Activos financieros
A28: Un activo financiero es revisado a la fecha de cada estado financiero para determinar si existe evidencia objetiva de deterioro de valor. Un activo financiero se considera deteriorado si existe evidencia objetiva indicativa de que uno o más eventos han tenido un efecto negativo en los flujos de efectivo futuros del activo.
A30: Las pérdidas por deterioro de valor en relación con los activos financieros registrados al costo amortizado son calculadas como la diferencia entre el importe en libros del activo y el valor actual de los flujos de efectivo futuros estimados, descontados a la tasa de interés efectiva.
A32: Los activos financieros individualmente significativos se evalúan de forma individual para analizar su deterioro. El resto de los activos financieros se evalúan en grupos que comparten características de riesgo crediticio similares.
A34: Todas las pérdidas por deterioro de valor se reconocen en resultados.
A36: Una pérdida por deterioro de valor se revierte si la reversión puede asignarse a un evento ocurrido con posterioridad al reconocimiento de la pérdida por deterioro de valor. En el caso de activos financieros registrados al costo amortizado, la reversión se reconoce en resultados.
A38: Activos no financieros
A39: Los valores contables de los activos de la sociedad diferentes de bienes de cambio e impuesto diferido son revisados a la fecha de cada estado financiero para determinar si existe un indicativo de deterioro.
A41: Si algún indicativo de deterioro existiera, el monto recuperable del activo es estimado como el mayor del precio neto de venta y el valor de uso, reconociéndose una pérdida por deterioro en el Estado de Resultados cuando el valor contable del activo o su unidad generadora de efectivo excede su monto recuperable.
A43: Las pérdidas por deterioro de valor reconocidas en períodos anteriores se analizan en cada fecha de cierre de año en busca de indicios de que la pérdida sea menor o haya desaparecido. Una pérdida por deterioro es revertida hasta el monto que no exceda el valor contable que hubiera correspondido si no se hubiera reconocido el deterioro, cuando posteriormente se produce un aumento en la estimación del monto recuperable.
A45: d. Efectivo y equivalentes de efectivo
A47: Para propósitos del estado de flujo de efectivo, el efectivo y equivalente de efectivo comprenden el efectivo disponible y los depósitos a la vista en bancos y se presentan a su valor nominal y en caso de existir las inversiones temporales asimilable a efectivo (de alta liquidez y con vencimiento originalmente pactado por plazo menor a tres meses).
A49: e. Bienes de uso fideicomitidos
A51: Los bienes de uso fideicomitidos que se mencionan en la nota 8 fueron transferidos al patrimonio autónomo. De acuerdo al contrato, los bienes fueron transferidos al Fiduciario e inscriptos en los Registros Públicos, no obstante la Sociedad mantiene efectivamente el control de los bienes fideicomitidos. Las depreciaciones de los bienes de uso fideicomitidos son registradas por la Sociedad, utilizando el método lineal y similares vidas útiles que para los bienes de uso.
A53: f. Bienes de cambio
A55: Las existencias se valúan a su costo de adquisición, o a su valor neto de realización si éste es menor. Los ajustes a valores netos de realización se incluyen en el costo de los bienes vendidos. Las materias primas, materiales y suministros se valuaron a su costo histórico en guaraníes.
A57: Los productos terminados y productos en proceso incluyen el costo de la materia prima, materiales y suministros, más el costo de la mano de obra y gastos de fabricación valuados en guaraníes, o al valor neto de realización si éste es menor.
A59: El valor neto de realización es el valor de venta estimado en el curso normal de los negocios, menos costos estimados de terminación y gastos de venta.
A61: Los productos terminados, así como las materias primas, materiales y suministros consumidos se tomaron al costo promedio ponderado.
A63: Las mercaderías en tránsito se valúan a su costo histórico en dólares estadounidenses más gastos de importación
A65: g. Inversiones
A67: Las inversiones corresponden al 51% de las acciones en la sociedad Frigorífico BFC S.A. situada en Bolivia por lo que corresponde consolidar los estados financieros de Frigorífico Concepción S.A.
A69: h. Bienes de uso
A71: Los bienes de uso existentes al inicio del periodo están valuados a su costo revaluado de acuerdo con las disposiciones de la Ley 125/91, utilizando los coeficientes que reflejan la inflación en el país. El incremento neto en el valor de los bienes tiene como contrapartida una reserva especial que forma parte del Patrimonio Neto. Las altas del periodo se computan a su costo de adquisició y los bienes son depreciados a partir del ejercicio siguiente al de su incorporación utilizando el método lineal.
A73: El costo de las mejoras que extienden la vida útil de los bienes o aumentan su capacidad productiva es imputado a las cuentas respectivas del activo. Los gastos de mantenimiento son cargados a resultados. El valor residual de los bienes de uso, considerados en su conjunto, no excede su valor recuperable al cierre del periodo. Al 31 de diciembre de 2019, los Bienes de uso han sido revaluados y depreciados a los efectos de computar los efectos, tanto de la inflación acumulada a diciembre de 2019, así como de la depreciación de los bienes al cierre del periodo. Determinados activos vinculados a fideicomiso figuran presentados a su valor de adquisición más la tasación realizada en los meses de febrero, marzo, y agosto del 2015, netos de amortización y pérdida de deterioro.
A75: i. Gastos pagados por anticipado
A77: Los gastos pagados por anticipado están constituidos por seguros y honorarios fiduciarios a vencer y han sido valuados a su costo.
A79: j. Previsión para cuentas de dudoso cobro/incobrables
A81: Las cuentas por cobrar y otros créditos se presentan por su cost menos cualquier pérdida por deterioro (Nota c). La previsión para deudores incobrables se ha constituido en función de los análisis de riesgo individualizado de los deudores.
A83: k. Reconocimiento de ingresos y egresos
A85: Los principales ingresos operativos de la Sociedad se originan en la comercialización de carnes y subproductos tanto en el mercado local como en el exterior.
A86: Las ventas en el mercado local son reconocidas cuando la mercadería es facturada y entregada.
A87: Los ingresos por ventas al exterior se reconocen cuando los títulos y los riesgos de pérdida se transfieren al cliente y cuando la cobranza está razonablemente asegurada. La transferencia de los títulos y del riesgo de pérdida al cliente se basa en los términos del contrato de venta, por lo general, en el momento del embarque.
A88: La Sociedad aplicó el principio de lo devengado a los efectos de la imputación de los gastos incurridos.
A90: l. Impuesto a la renta
A92: El impuesto a la renta que se carga a los resultados del año a la tasa del 10% se basa en la utilidad contable antes de este concepto, ajustada por las partidas que la ley incluye o excluye para la determinación de la utilidad gravable. De acuerdo con las disposiciones de la Ley 125/91, modificada por la Ley 2421/04 la distribución de utilidades en efectivo está gravada a la tasa del 5%. El cargo a resultados en concepto de impuesto a la renta del 5% adicional correspondiente a la distribución de utilidades mencionadas, la Sociedad registra este cargo adicional de impuesto a la renta en el ejercicio en el cual la Asamblea de Accionistas decide dicha distribución.
A94: El impuesto diferido es calculado utilizando el método del estado de situación basado en el balance general, determinado a partir de las diferencias temporarias entre los importes contables de activos y pasivos y los importes utilizados para fines fiscales. El importe de impuesto diferido calculado está basado en la forma esperada de realización o liquidación de los importes contables de activos y pasivos, utilizado la tasa de impuesto aprobada a la fecha de los estados financieros.
A96: Un activo por impuesto diferido es reconocido solamente hasta el importe que es probable que futuras ganancias imponibles estarán disponibles, contras las cuales el activo pueda ser utilizado.
A98: m. Uso de estimaciones
A100: La preparación de los presentes estados financieros requiere que el Directorio y la Gerencia de la Sociedad realicen estimaciones y evaluaciones que afectan el monto de los activos y pasivos registrados y contingentes; como así también los ingresos y egresos registrados en el período. Los resultados reales futuros pueden diferir de las estimaciones y evaluaciones a la fecha de preparación de los presentes estados financieros.
A102: ..//..

Sheet Nota 3
A1: =Indice!C1 -> FRIGORIFICO CONCEPCION S.A. | E1: BG
A4: NOTA 3 - EFECTIVO Y EQUIVALENTE DE EFECTIVO
A5: Cifras expresadas en guaranies
A7: La composición de la cuenta es la siguiente:
A9: Concepto | C9: 2020-06-30 | D9: 2019-12-31
A11: Caja | C11: 1027989738 | D11: 1107595986
A12: Recaudaciones a depositar | C12: 428523119 | D12: 18104600
A13: Bancos Locales - Moneda local Guaraníes | C13: 6899097368 | D13: 1722380053
A14: Bancos Locales - Moneda extranjera Dólares | C14: =58312146426-23886277 -> 58288260149 | D14: 7303563768
A15: Bancos en el Extranjero - Moneda extranjera Dólares | C15: 23886277 | D15: 9584214
A16: Total | C16: =SUM($C$11:C15) -> 66667756651 | D16: =SUM($D$11:D15) -> 10161228621

Sheet Nota 4
A1: =Indice!C1 -> FRIGORIFICO CONCEPCION S.A. | D1: BG
A2: NO APLICABLE
A4: NOTA 4 - INVERSIONES TEMPORALES
A5: Cifras expresadas en guaranies
A7: La composición de la cuenta es la siguiente:
A9: Concepto | B9: 2020-06-30 | C9: 2019-12-31
A10: Inversiones en Titulos del Sistema Financiero Local - Moneda Local Guaraníes | B10: - | C10: -
A11: Inversiones en Titulos del Sistema Financiero Local - Moneda Extranjera Dólares | B11: - | C11: -
A12: Inversiones en Titulos del Sistema Financiero Local - Moneda Extranjera otros | B12: - | C12: -
A13: Inversiones en Mercado Bursatil Local - Moneda Local Guaraníes | B13: - | C13: -
A14: Inversiones en Mercado Bursatil Local - Moneda Extranjera Dólares | B14: - | C14: -
A15: Inversiones en Mercado Bursatil Extranjera - Moneda Extranjera Dólares | B15: - | C15: -
A16: Inversiones en Mercado Bursatil Extranjera - Moneda Extranjera otros | B16: - | C16: -
A17: Otras inversiones - Moneda Local Guaraníes | B17: - | C17: -
A18: Otras inversiones - Moneda Extranjera Dólares | B18: - | C18: -
A19: Total | B19: =SUM($B$10:B18) -> 0 | C19: =SUM($C$10:C18) -> 0

Sheet Nota 5
A1: =Indice!C1 -> FRIGORIFICO CONCEPCION S.A. | F1: BG
A2: Detallar cartera vencida y no vencida por clientes locales, extranjeros y partes relacionadas
A3: Se indicarán en este rubro todos los créditos a favor de la empresa provenientes de las ventas de Mercaderías y/o servicios (atendiendo a la actividades ordinarias de la empresa), separando las ventas locales en moneda nacional y/o extranjera de las ventas fuera del país en moneda nacional y/o extranjera
A5: NOTA 5 – CUENTAS POR COBRAR COMERCIALES
A6: Las cuentas a cobrar comerciales a corto plazo se integran como sigue:
C7: En guaraníes | F7: Composición de la cartera de créditos por ventas | G7: 2020-06-30
C8: 2020-06-30 | D8: 2019-12-31 | F8: Situación | G8: Monto | H8: % Previsiones sobre Cartera
A9: Deudores por ventas locales | B9: Moneda Local Guaraníes | C9: 16798856102 | D9: 21451025222 | F9: A Total Cartera no Vencida | G9: =+C14 -> 595833879752 | H9: 0
A10: Deudores por ventas en el exterior | B10: Moneda Extranjera Dólares | C10: 253694233314 | D10: 412585614970 | F10: B. Total Cartera Vencida | G10: =+G13+G14 -> 3094511111
A11: Deudores por ventas en el exterior - fideicomitidos (a) | B11: Moneda Extranjera Dólares | C11: 319867898343 | D11: 0
A12: Deudores - Entidad relacionada | B12: Moneda Local Guaraníes | C12: 5472891993 | D12: 4899655753 | F12: Composición Cartera Vencida
A13: Menos Previsiones | C13: 0 | D13: 0 | F13: Normal | G13: =+C21 -> 1901294139 | H13: 0
A14: Total | C14: =+SUM($C$9:C13) -> 595833879752 | D14: =SUM(D9:D13) -> 438936295945 | F14: En Gestión de Cobro | G14: =+C20 -> 1193216972 | H14: 1
F15: En Gestión de Cobro Judicial | G15: 0 | H15: 0
A17: Las cuentas a cobrar comerciales a largo plazo se integran como sigue: | F17: Total de la cartera de créditos (A+B) | G17: =G9+G10 -> 598928390863
C18: En guaraníes
C19: 2020-06-30 | D19: 2019-12-31 | F19: (-) Total Previsiones | G19: =-((G9*H9)+(SUMPRODUCT(G13:G15,H13:H15))) -> -1193216972
A20: Deudores por ventas en el exterior lp | B20: Moneda Extranjera Dólares | C20: 1193216972 | D20: 1193216972
A21: Deudores - Entidad relacionada lp | B21: Moneda Local Guaraníes | C21: 1901294139 | D21: 1901294139 | F21: TOTAL NETO DE LA CARTERA DE CRÉDITOS | G21: =G17+G19 -> 597735173891
A22: Menos Previsiones lp | C22: -1193216972 | D22: -1193216972
A23: Total | C23: =SUM(C20:C22) -> 1901294139 | D23: =+SUM($D$20:D22) -> 1901294139 | F23: Observaciones
F24: Criterios de Clasificación utilizados | G24: De | H24: A
A25: Total | C25: =+C14+C23 -> 597735173891 | D25: =+D14+D23 -> 440837590084 | F25: Normal
F26: En Gestión de Cobro | H26: 365
F27: En Gestión de Cobro Judicial | G27: 365
A31: La sociedad celebró un Contrato de Fideicomiso de Administración y Garantía en la relación con la emisión de bonos en el mercado de capitales norteamericano e internacional del FRIGORIFICO CONCEPCION S.A., a favor de WILMINGTON TRUST, en carácter de Beneficiario, Dicho contrato se celebró con la entidad FINANCIERA FINEXPAR S.A.E.C.A., el cual se hallaba sujeto a la emisión de bonos internacional, que se concretó el 29 de enero del 2.020, fecha en la cual paso a formar parte de la estructura de garantía (colateral) de la mencionada emisión, junto con las siguientes escrituras:
A33: a) Acuerdo de terminación de Contrato de Fideicomiso (restitución de inmuebles y muebles) formalizado en la firma Frigorífico Concepción S.A. (Fideicomitente), Sudameris Bank S.A.E.C.A. (Beneficiario) y Banco Atlas S.A. (fiduciario) y transferencia de bienes muebles e inmuebles a favor de FINEXPAR S.A.E.C.A., en su carácter de fiduciario del fideicomiso de Administración y Garantía – Emisión Internacional de Bonos Frigorífico Concepción S.A., Escritura N° 3, pasada ante la ESCRIBANA MARIA EMILIA BAEZ DELVALLE, inscripta en la Dirección General de los Registros Públicos de la República, según consta en la escritura respectiva,
A35: b) Acuerdos de terminaciones de los Contratos de Fideicomiso de Garantía por las emisiones de bonos emitidos por Frigorífico Concepción S.A. en calidad de fideicomitente, Cadiem Casa de Bolsa S.A., en calidad de representante de tenedores de bonos (beneficiarios) y Banco Atlas S.A., en calidad de fiduciario, tanto en guaraníes como en dólares,
A37: Celebradas todas en fecha 29 de enero del 2.020,
A39: A partir de la estructura contractual descripta, la sociedad cedió el derecho de cobro de las CUENTAS A COBRAR vigentes, para la conformación del Patrimonio Autónomo del nuevo fideicomiso de administración y garantía, administrado por la fiduciaria Finexpar S.A.E.C.A. Dicha documentación cedida y sujeta a determinadas condiciones, recibe su respectiva cobranza en una cuenta bancaria fiduciaria. A la sustitución de los documentos cobrados, por nueva cartera de documentos a cobrar, la fiduciaria procede a devolver los fondos colectados en la mencionada cuenta fiduciaria, creando así un ciclo de renovación constante de documentos a cobrar, con lo cual la garantía demuestra un movimiento dinámico del flujo de dinero de la compañía.
A40: ..//..

Sheet Nota 6
A1: =Indice!C1 -> FRIGORIFICO CONCEPCION S.A. | D1: BG | E1: =Indice!C1 -> FRIGORIFICO CONCEPCION S.A.
A3: Corrientes | E3: No corrientes
A5: Concepto | B5: 2020-06-30 | C5: 2019-12-31 | E5: Concepto | F5: 2020-06-30 | G5: 2019-12-31
A6: Partes relacionadas (Nota 14) | B6: 23363563392 | C6: 17653243486 | E6: Partes relacionadas (Nota 14) lp | F6: 72728460243 | G6: 47964888012
A7: Anticipos a proveedores de ganado | B7: 9693991373 | C7: 22069819036 | E7: Garantía de Alquiler | F7: 0 | G7: 0
A8: Anticipos a proveedores del exterior | B8: 7643260259 | C8: 8710655756 | E8: I.V.A. Crédito fiscal | F8: 7599114551 | G8: 7599114551
A9: Anticipos a proveedores locales | B9: 9222597960 | C9: 7747790916 | E9: Anticipos a proveedores | F9: 7058556902 | G9: 7058556902
A10: Gastos pagados por adelantado | B10: 854683032 | C10: 1809876319 | E10: I.V.A Mercado Local | F10: 35969774192 | G10: 38108656684
A11: I.V.A. excedente 2019 | B11: 0 | C11: 13562368157 | E11: Retención Impuesto al Valor Agregado | F11: 14761039817 | G11: 14162439530
A12: I.V.A. excedente 2020 | B12: 38786033744 | C12: 0 | E12: I.V.A Crédito fiscal en sumario | F12: 18881887013 | G12: 18268352405
A13: Crédito fiscal a acreditar | B13: 2105419509 | C13: 4979638080 | E13: Otros créditos lp | F13: 62205458955 | G13: 0
A14: Garantía de Alquiler | B14: 1023449527 | C14: 987985052 | E14: Total | F14: =SUM(F6:F13) -> 219204291673 | G14: =SUM(G6:G13) -> 133162008084
A15: Anticipo Impuesto a la Renta | B15: 9714288512 | C15: 0
A16: Retención Impuesto a la Renta | B16: 0 | C16: 0 | E16: Concepto | F16: 2020-06-30 | G16: 2019-12-31
A17: Retención Impuesto al Valor agregado | B17: 81265186 | C17: 0
A18: Otros créditos | B18: 9048394327 | C18: =7175891365+2920868397-1809876319 -> 8286883443 | E18: (-) Previsión para incobrables | F18: -7058556902 | G18: -7058556902
A19: Total | B19: =SUM($B$6:B18) -> 111536946821 | C19: =SUM($C$6:C18) -> 85808260245 | E19: Total neto de previsiones | F19: =+F14+F18 -> 212145734771 | G19: =+G14+G18 -> 126103451182

Sheet Nota 7
A1: =Indice!C1 -> FRIGORIFICO CONCEPCION S.A. | D1: BG
A4: NOTA 7 – INVENTARIOS
A5: Cifras expresadas en guaranies
A6: Los bienes de cambio están compuestos de la siguiente manera:
A8: Concepto | B8: 2020-06-30 | C8: 2019-12-31
A9: Mercaderías | B9: 403616941383 | C9: 374363765644
A10: Productos terminados | B10: 0 | C10: 0
A11: Productos en proceso | B11: 0 | C11: 0
A12: Materia prima | B12: 0 | C12: 0
A13: Materiales - insumos industriales | B13: 14850134822 | C13: 13295334416
A14: (-) Previsión para desvalorización y deterioro de inventario | B14: 0 | C14: 0
A15: Total | B15: =SUM(B9:B14) -> 418467076205 | C15: =SUM(C9:C14) -> 387659100060

Sheet Nota 8
A1: =Indice!C1 -> FRIGORIFICO CONCEPCION S.A. | D1: BG
A4: Nota 8 - INVERSIONES EN ASOCIADAS
A5: Cifras expresadas en guaraníes
A6: Las inversiones en sociedades donde se ejerce control se describen a continuación
A7: Periodo | B7: 2020-06-30 | C7: 2019-12-31
A8: Total Inversión | B8: =SUM($I$13:I18) -> 30056300 | C8: 30056300
A10: a) Datos sobre la sociedad: | G10: a) Datos sobre la inversión:
D11: =IFERROR(IF(Indice!B6="","2XX2",YEAR(Indice!B6)),"2XX2") -> 2020
A12: Nombre de Sociedad | B12: RUC | C12: Cantidad de acciones | D12: Total Patrimonio neto | E12: Total del resultado | G12: Cantidad de acciones | H12: Participación sobre los votos (%) | I12: Total Inversión (miles de Gs) | J12: Participación sobre el Patrimonio Neto (%) | K12: Total valuación patrimonial proporcional | L12: Resultado sobre inversiones
A13: FRIGORIFICO BFC S.A. | B13: - | C13: 700 | D13: 25203629198 | E13: 0 | G13: 357 | H13: 0.51 | I13: 30056300 | J13: 0.51 | K13: =J13*D13 -> 1.285385089e+10 | L13: =J13*E13 -> 0
K14: =J14*D14 -> 0 | L14: =J14*E14 -> 0
K15: 0 | L15: 0
K16: 0 | L16: 0
K17: 0 | L17: 0
K18: 0 | L18: 0

Sheet Nota 9
A1: =Indice!C1 -> FRIGORIFICO CONCEPCION S.A. | L1: BG
A4: NOTA 9 - PROPIEDADES, PLANTA Y EQUIPO - NETO
A5: Cifras expresadas en guaraníes | J5: -1
A7: Detalle | B7: Costo histórico revaluado al inicio del año | C7: Adquisiciones | D7: Reclasificaciones | E7: Revalúo del año | F7: Valor de origen revaluado al final del año | G7: Depreciación acumulada revaluada al inicio del año | H7: Depreciación del año | I7: Reclasificaciones | J7: Revalúo depreciación acumulada del año | K7: Depreciación acumulada revaluada al final del año | L7: Valor neto contable
L8: 2020-06-30 | M8: 2019-12-31
A9: Terrenos | B9: 47056628235 | C9: 0 | D9: -10071798405 | E9: 0 | F9: =SUM(B9:E9) -> 36984829830 | G9: 0 | H9: 0 | I9: 0 | J9: 0 | K9: 0 | L9: =+F9-K9 -> 36984829830 | M9: 47056628235
A10: Mejoras en Predio | B10: 31092461135 | C10: 17974118 | D10: -15740773703 | E10: 0 | F10: =SUM(B10:E10) -> 15369661550 | G10: -4788034860 | H10: -721462824.3 | I10: 441426562 | J10: 0 | K10: -5068071122 | L10: =+F10+K10 -> 1.030159043e+10 | M10: 26304426275
A11: Maquinarias y Equipos | B11: 28177827967 | C11: 1456412117 | D11: -17646063296 | E11: 0 | F11: 11988176788 | G11: -9360312470 | H11: -507034984.5 | I11: 5932023338 | J11: 0 | K11: -3935324117 | L11: =+F11+K11 -> 8052852671 | M11: 18817515500
A12: Instalaciones | B12: 13497626582 | C12: 206826545 | D12: -12755705177 | E12: 0 | F12: 948747950 | G12: -7828603779 | H12: -66539053.62 | I12: 7517980281 | J12: 0 | K12: -377162551.6 | L12: 571585398.4 | M12: 5669022803
A13: Edificios | B13: 6338569191 | C13: 0 | D13: -18487252 | E13: 0 | F13: 6320081939 | G13: -1389276025 | H13: -79001024.25 | I13: -31910258 | J13: 0 | K13: -1500187307 | L13: 4819894632 | M13: 6042500743
A14: Barcazas | B14: 6098931746 | C14: 0 | D14: 20477639 | E14: 0 | F14: 6119409385 | G14: -940629949 | H14: -152985234.6 | I14: -20477639 | J14: 0 | K14: -1114092823 | L14: 5005316562 | M14: 5158301797
A15: Avionetas | B15: 15916019871 | C15: 1176754333 | D15: 292461305 | E15: 0 | F15: 17385235509 | G15: -14009397941 | H15: -346081750.1 | I15: -292461220 | J15: 0 | K15: -1.464794091e+10 | L15: 2737294598 | M15: 1906621930
A16: Rodados | B16: 17689137983 | C16: 126600000 | D16: 40727085 | E16: 0 | F16: 17856465068 | G16: -15816229667 | H16: -373256498.1 | I16: -40727079 | J16: 0 | K16: -1.623021324e+10 | L16: 1626251824 | M16: 1872908316
A17: Construcciones | B17: 2733869070 | C17: 59500166 | D17: 0 | E17: 0 | F17: 2793369236 | G17: 0 | H17: 0 | I17: 0 | J17: 0 | K17: 0 | L17: 2793369236 | M17: =2733869070+96 -> 2733869166
A18: Muebles y Utiles | B18: 2717293193 | C18: 18093350 | D18: -567864666 | E18: 0 | F18: 2167521877 | G18: -1356654842 | H18: -99681423.27 | I18: 232108546 | J18: 0 | K18: -1224227719 | L18: =+F18+K18 -> 943294157.7 | M18: 267430773
A19: Herramientas | B19: 1738037587 | C19: 13154544 | D19: 39074502 | E19: 0 | F19: 1790266633 | G19: -961756280 | H19: -132214276 | I19: -39074502 | J19: 0 | K19: -1133045058 | L19: 657221575 | M19: 776281307
A20: Equipos de computacion | B20: 3030740881 | C20: 18301419 | D20: 127042524 | E20: 0 | F20: 3176084824 | G20: -2783236022 | H20: -70070808.82 | I20: -103149763 | J20: 0 | K20: -2956456594 | L20: 219628230.2 | M20: 247504762
A21: Softwares Informaticos | B21: 156478021 | C21: 0 | D21: -25613684 | E21: 0 | F21: 130864337 | G21: -100645684 | H21: -4686588.31 | I21: 1720923 | J21: 0 | K21: -103611349.3 | L21: 27252987.69 | M21: 55832336
A22: Sub total | B22: =SUM(B9:B21) -> 176243621462 | C22: 3093616592 | D22: -56306523128 | E22: 0 | F22: 123030714926 | G22: -59334777519 | H22: -2553014466 | I22: 13597459189 | J22: 0 | K22: -4.82903328e+10 | L22: =SUM($L$9:L21) -> 7.474038213e+10 | M22: =SUM($M$9:M21) -> 116908843943
B25: Costo histórico revaluado al inicio del año | C25: Adquisiciones | D25: Reclasificaciones | E25: Revalúo del año | F25: Valor de origen revaluado al final del año | G25: Depreciación acumulada revaluada al inicio del año | H25: Depreciación del año | I25: Reclasificaciones | J25: Revalúo depreciación acumulada del año | K25: Depreciación acumulada revaluada al final del año | L25: Valor neto contable
L26: 2020-06-30 | M26: 2019-12-31
A27: Inmuebles fideicomiso | B27: 154040920236 | C27: 6597781 | D27: 27830442407 | E27: 0 | F27: =SUM(B27:E27) -> 181877960424 | G27: 18698943028 | H27: -1331441361 | I27: -2408899339 | J27: 0 | K27: =-22439283728.0716 -> -2.243928373e+10 | L27: =+F27+K27 -> 1.594386767e+11 | M27: 135341977208
A28: Muebles fideicomiso | B28: 168271988494 | C28: 180462496 | D28: 31458598671 | E28: 0 | F28: 199911049661 | G28: 106038724458 | H28: -3919883853 | I28: -1.41710778e+10 | J28: 0 | K28: -1.241296861e+11 | L28: =+F28+K28 -> 7.578136355e+10 | M28: 62233264036
A29: Sub total | B29: =SUM(B27:B28) -> 322312908730 | C29: =SUM(C27:C28) -> 187060277 | D29: 59289041078 | E29: 0 | F29: 381789010085 | G29: 124737667486 | H29: -5251325214 | I29: -1.657997714e+10 | J29: 0 | K29: -1.465689698e+11 | L29: 2.352200402e+11 | M29: 197575241244
A31: Total | B31: =+B22+B29 -> 498556530192 | C31: =+C22+C29 -> 3280676869 | D31: 2982517950 | E31: 0 | F31: 504819725011 | G31: 65402889967 | H31: -7804339680 | I31: -2982517950 | J31: 0 | K31: -1.948593026e+11 | L31: 3.099604224e+11 | M31: =+M22+M29 -> 314484085187
A33: Bienes de uso fideicomitidos
A35: La Sociedad constituyó una nueva operación fiduciaria identificada como “Contrato de Fideicomiso de Administración y Garantía – Emisión Internacional de Bonos Frigorífico Concepción S.A. entre Frigorífico Concepción S.A. en carácter de fideicomitente, Wilmington Trust National Association, en carácter de beneficiario y Finexpar S.A.E.C.A. en carácter de fiduciaria, Esta operación se generó inicialmente mediante contrato celebrado en fecha 12 de diciembre del 2.019, formalizándose posteriormente mediante las escrituras públicas Números 03, 05 y 51, todas de fecha 29 de enero del 2.020, pasadas ante la escribana María Emilia Báez Delvalle, todas debidamente registradas en la Dirección General de los Registros Públicos.
A36: Este fideicomiso fue constituido en garantía para la emisión de bonos internacionales, en una transacción descripta en la Nota 12.2 constituyendo un patrimonio autónomo integrado por:
A38: · Bienes inmuebles y maquinaria industrial de la industria frigorífica de ciclo completo situada en la ciudad de Concepción.
A39: · Bienes inmuebles y maquinaria industrial de la curtiembre, situada en la ciudad de Concepción.
A40: · Bienes inmuebles y maquinaria industrial de la planta de Ciclo II, situada en el Barrio Trinidad de Asunción.
A42: Dichos bienes muebles e inmuebles, poseen tasaciones actualizadas a Setiembre 2019, realizadas por el Arquitecto Curt Tippach, tasador registrado en el Banco Central del Paraguay, con matricula C.S.J. 712.
A44: La transacción fue estructurada a partir de la cancelación de determinadas deudas contraídas con el sistema financiero (Sudameris Bank S.A., Banco Continental S.A.E.C.A. y Banco Basa S.A.) que poseían en garantía de las mismas, los mencionados bienes, como patrimonios autónomos de los respectivos fideicomisos de garantía, los cuales fueron cancelados en su totalidad.
A46: La duración del Contrato de Fideicomiso mencionado en este apartado, es de diez (10) años contados a partir de la emisión de los BONOS INTERNACIONALES FRIGORIFICO CONCEPCION S.A.. No obstante, surtirá todos sus efectos hasta que los derechos y obligaciones regulados sean íntegramente satisfechos para todas las partes.
A48: Al 30 de junio de 2020, tanto los Bienes de uso fideicomitidos, como los restantes han sido depreciados a fin de computar los efectos del desgaste de los bienes depreciables, de acuerdo a los criterio tributariamente permitidos en su reglamentación vigente.

Sheet Nota 10
A1: =Indice!C1 -> FRIGORIFICO CONCEPCION S.A. | C1: BG
A3: NO APLICABLE
A5: NOTA 10 – ACTIVOS DISPONIBLES PARA LA VENTA
A6: Cifras expresadas en guaraníes
B7: 2020-06-30 | C7: 2019-12-31
A8: Propiedad, planta y equipo
A9: (Detallar bienes de uso)
A10: Total | B10: =B9 -> 0 | C10: =C9 -> 0
A12: Activos intangibles
A13: (Detallar activos intangibles)
A14: Total | B14: =B13 -> 0 | C14: =C13 -> 0
A16: Inversiones
A17: (Detallar Inversiones
A18: Total | B18: =B17 -> 0 | C18: =C17 -> 0
A20: Total general | B20: =B10+B14+B18 -> 0 | C20: =C10+C14+C18 -> 0

Sheet Nota 11
A1: =Indice!C1 -> FRIGORIFICO CONCEPCION S.A. | F1: BG
A3: NO APLICABLE
A5: NOTA 11 – ACTIVOS INTANGIBLES
A6: Cifras expresadas en guaraníes
A8: Activos intangibles | B8: 2020-06-30 | C8: 2019-12-31
A9: (Detallar activos intangibles)
A10: Menos amortización acumulada | B10: - | C10: -
A12: Total general | B12: =SUM(B9:B11) -> 0 | C12: =SUM(C9:C11) -> 0

Sheet Nota 12
A1: =Indice!C1 -> FRIGORIFICO CONCEPCION S.A. | E1: BG
A5: NOTA 12 – PROPIEDADES DE INVERSION
A6: Cifras expresadas en guaraníes
B8: 2020-06-30 | C8: 2019-12-31
A9: Propiedades de Inversión | B9: 46929360000 | C9: 46929360000
A10: Total general | B10: =SUM(B9:B9) -> 46929360000 | C10: =SUM(C9:C9) -> 46929360000
A13: Al 30 de junio de 2020 las propiedades de inversión se componen de 4 fincas que totalizan 11.121 hectáreas ubicadas en el departamento de Alto Paraguay;
A15: Finca N° 199 RR01, Título N° 207.757, Padrón 1488, dimensión 3.000 Has;
A16: Finca N° 200 RR01, Título N°. 207.759, Padrón 1487, dimensión 2.621 Has
A17: Finca N°. 201 RR01, Título N°. 207.758, Padrón 1485, dimensión 3.000 Has;
A18: Finca N° 202 RR01, Título N°. 207.768, Padrón 1486, dimensión 2.500 Has;

Sheet Nota 13
A1: =Indice!C1 -> FRIGORIFICO CONCEPCION S.A. | C1: BG
A4: NOTA 13 – CUENTAS POR PAGAR COMERCIALES
A5: Cifras expresadas en guaranies
A6: Las cuentas por pagar comerciales se componen como sigue:
A8: Corrientes | B8: Simbología según ISO 4217 | C8: Indicación de Moneda | D8: 2020-06-30 | E8: 2019-12-31
A9: Proveedores - Entidades Relacionadas | B9: PYG | C9: =IFERROR(VLOOKUP(B9,'Base de Monedas'!A:B,2,0),"") -> Guaraní | D9: 4385641421 | E9: 3636471012
A10: Otros proveedores del exterior | B10: USD | C10: =IFERROR(VLOOKUP(B10,'Base de Monedas'!A:B,2,0),"") -> Dólar estadounidense | D10: 6430261876 | E10: 8299334540
A11: Proveedores locales | B11: PYG | C11: =IFERROR(VLOOKUP(B11,'Base de Monedas'!A:B,2,0),"") -> Guaraní | D11: 82520368069 | E11: 59540405167
A12: (nuevas cuentas a incluir) | C12: =IFERROR(VLOOKUP(B12,'Base de Monedas'!A:B,2,0),"") -> 
A13: Total cuentas a pagar por comerciales | D13: =SUM($D$9:D11) -> 93336271366 | E13: =SUM($E$9:E11) -> 71476210719
A17: No Corrientes | B17: Simbología según ISO 4217 | C17: Indicación de Moneda | D17: 2020-06-30 | E17: 2019-12-31
A18: Proveedores - Entidades Relacionadas | B18: PYG | C18: =IFERROR(VLOOKUP(B18,'Base de Monedas'!A:B,2,0),"") -> Guaraní | D18: 0 | E18: 0
A19: Otros proveedores del exterior | B19: USD | C19: =IFERROR(VLOOKUP(B19,'Base de Monedas'!A:B,2,0),"") -> Dólar estadounidense | D19: 0 | E19: 0
A20: Proveedores locales | B20: PYG | C20: =IFERROR(VLOOKUP(B20,'Base de Monedas'!A:B,2,0),"") -> Guaraní | D20: 0 | E20: 0
A21: (nuevas cuentas a incluir) | C21: =IFERROR(VLOOKUP(B21,'Base de Monedas'!A:B,2,0),"") -> 
A22: Total cuentas a pagar por comerciales | D22: =SUM($D$18:D20) -> 0 | E22: =SUM($E$18:E20) -> 0

Sheet Nota 14
A1: =Indice!C1 -> FRIGORIFICO CONCEPCION S.A. | E1: BG | L1: BG
A4: NOTA 14 – PRESTAMOS A CORTO Y LARGO PLAZO
A6: (a) Equivalentes al tipo de cambio referencial de la fecha de presentacion
A7: (b) Obligaciones garantizadas por valor de guaraníes………..
A9: Corrientes
D10: =IFERROR(IF(Indice!B6="","2XX2",YEAR(Indice!B6)),"2XX2") -> 2020 | J10: =IFERROR(YEAR(Indice!B6-365),"2XX1") -> 2019
A11: Préstamos de Entidades Locales | B11: Vencimiento | C11: Símbolo de Moneda | D11: Moneda | E11: Importe (expresada en Gs) | F11: Tipo de Garantía | H11: Vencimiento | I11: Símbolo de Moneda | J11: Moneda | K11: Importe (Expresada en Gs) | L11: Tipo de Garantía
D12: =IFERROR(VLOOKUP(C12,'Base de Monedas'!A:B,2,0),"") ->  | J12: =IFERROR(VLOOKUP(I12,'Base de Monedas'!A:B,2,0),"") -> 
A13: PRESTAMO BANCO G N B PARAGUAY S.A | B13: 2020-09-28 | C13: USD | D13: =IFERROR(VLOOKUP(C13,'Base de Monedas'!A:B,2,0),"") -> Dólar estadounidense | E13: 4194300000 | F13: Sola Firma | H13: 2020-01-28 | I13: USD | J13: =IFERROR(VLOOKUP(I13,'Base de Monedas'!A:B,2,0),"") -> Dólar estadounidense | K13: 7039296000 | L13: Sola Firma
A14: PRESTAMO BANCO BASA S.A | B14: 0 | C14: 0 | D14: 0 | E14: 0 | F14: 0 | H14: 2019-12-30 | I14: USD | J14: =IFERROR(VLOOKUP(I14,'Base de Monedas'!A:B,2,0),"") -> Dólar estadounidense | K14: 2908800000 | L14: Hipotecario
A15: PRESTAMO BANCO CONTINENTAL S.A.E.C.A | B15: 0 | C15: 0 | D15: 0 | E15: 0 | F15: 0 | H15: 2020-09-04 | I15: USD | J15: =IFERROR(VLOOKUP(I15,'Base de Monedas'!A:B,2,0),"") -> Dólar estadounidense | K15: 5.302872094e+10 | L15: Fideicomiso
A16: PRESTAMO BANCO ATLAS S.A. (a) | B16: 2021-05-21 | C16: USD | D16: =IFERROR(VLOOKUP(C16,'Base de Monedas'!A:B,2,0),"") -> Dólar estadounidense | E16: 2389046000 | F16: Fideicomiso | H16: 2020-03-22 | I16: USD | J16: =IFERROR(VLOOKUP(I16,'Base de Monedas'!A:B,2,0),"") -> Dólar estadounidense | K16: 7039169952 | L16: Fideicomiso
A17: PRESTAMO BANCO REGIONAL | B17: 2021-01-25 | C17: PYG | D17: =IFERROR(VLOOKUP(C17,'Base de Monedas'!A:B,2,0),"") -> Guaraní | E17: 4256460578 | F17: Sola Firma | H17: 2020-03-19 | I17: PYG | J17: =IFERROR(VLOOKUP(I17,'Base de Monedas'!A:B,2,0),"") -> Guaraní | K17: 1.140749614e+10 | L17: Sola Firma
A18: PRESTAMO CITIBANK | B18: 0 | C18: 0 | D18: 0 | E18: 0 | F18: 0 | H18: 2019-10-25 | I18: USD | J18: =IFERROR(VLOOKUP(I18,'Base de Monedas'!A:B,2,0),"") -> Dólar estadounidense | K18: 1.291455275e+10 | L18: Sola Firma
A19: PRESTAMO BANCOP S.A. | B19: 2021-02-01 | C19: PYG | D19: =IFERROR(VLOOKUP(C19,'Base de Monedas'!A:B,2,0),"") -> Guaraní | E19: 12096375938 | F19: Hipotecario | H19: 2020-02-23 | I19: USD | J19: =IFERROR(VLOOKUP(I19,'Base de Monedas'!A:B,2,0),"") -> Dólar estadounidense | K19: 14271704000 | L19: Hipotecario
A20: PRESTAMO BANCO RIO S.A.E.C.A (b) | B20: 2020-08-29 | C20: USD | D20: =IFERROR(VLOOKUP(C20,'Base de Monedas'!A:B,2,0),"") -> Dólar estadounidense | E20: 3041607602 | F20: Hipotecario | H20: 2020-04-17 | I20: USD | J20: =IFERROR(VLOOKUP(I20,'Base de Monedas'!A:B,2,0),"") -> Dólar estadounidense | K20: 1937092736 | L20: Hipotecario
A21: PRESTAMO FINEXPAR S.A. | B21: 0 | C21: 0 | D21: 0 | E21: 0 | F21: 0 | H21: 2020-02-02 | I21: PYG | J21: =IFERROR(VLOOKUP(I21,'Base de Monedas'!A:B,2,0),"") -> Guaraní | K21: 5168923089 | L21: Sola Firma
A22: PRESTAMO INTERFISA | B22: 0 | C22: 0 | D22: 0 | E22: 0 | F22: 0 | H22: 2020-03-25 | I22: USD | J22: =IFERROR(VLOOKUP(I22,'Base de Monedas'!A:B,2,0),"") -> Dólar estadounidense | K22: 1.161965652e+10 | L22: Warrants
A23: PRESTAMO SUDAMERIS BANK | B23: 0 | C23: 0 | D23: 0 | E23: 0 | F23: 0 | H23: 2020-05-13 | I23: USD | J23: =IFERROR(VLOOKUP(I23,'Base de Monedas'!A:B,2,0),"") -> Dólar estadounidense | K23: 7.515061609e+10 | L23: Fideicomiso
A24: PRESTAMO BANCO NACIONAL DE FOMENTO | B24: 0 | C24: 0 | D24: 0 | E24: 0 | F24: 0 | H24: 2020-05-10 | I24: USD | J24: =IFERROR(VLOOKUP(I24,'Base de Monedas'!A:B,2,0),"") -> Dólar estadounidense | K24: 11312000000 | L24: Hipotecario
A25: SOBREGIROS BANCARIOS | I25: USD | J25: =IFERROR(VLOOKUP(I25,'[1]Base de Monedas'!A:B,2,0),"") -> Dólar estadounidense | K25: 30750329815
D26: =IFERROR(VLOOKUP(C26,'Base de Monedas'!A:B,2,0),"") ->  | J26: =IFERROR(VLOOKUP(I26,'Base de Monedas'!A:B,2,0),"") -> 
A27: Deudas bursátiles | D27: =IFERROR(VLOOKUP(C27,'Base de Monedas'!A:B,2,0),"") ->  | J27: =IFERROR(VLOOKUP(I27,'Base de Monedas'!A:B,2,0),"") -> 
A28: PYFRI01F9774 | B28: 2020-07-03 | C28: PYG | D28: =IFERROR(VLOOKUP(C28,'Base de Monedas'!A:B,2,0),"") -> Guaraní | E28: 6023186632 | F28: Sin Garantía | H28: 2020-07-03 | I28: PYG | J28: Guaraní | K28: 6023186632 | L28: Sin Garantía
A29: PYFRI01F9766 | B29: 2020-07-03 | C29: USD | D29: =IFERROR(VLOOKUP(C29,'Base de Monedas'!A:B,2,0),"") -> Dólar estadounidense | E29: 7101806015 | F29: Sin Garantía | H29: 2020-07-03 | I29: USD | J29: Dólar estadounidense | K29: =6731095906-784 -> 6731095122 | L29: Sin Garantía
A30: PYFRI02F0160 | B30: 2020-09-26 | C30: USD | D30: =IFERROR(VLOOKUP(C30,'Base de Monedas'!A:B,2,0),"") -> Dólar estadounidense | E30: 7120439073 | F30: Sin Garantía | H30: 2020-09-26 | I30: USD | J30: Dólar estadounidense | K30: 0 | L30: Sin Garantía
A31: PYFRI02F0152 | B31: 2020-09-26 | C31: PYG | D31: =IFERROR(VLOOKUP(C31,'Base de Monedas'!A:B,2,0),"") -> Guaraní | E31: 5984609650 | F31: Sin Garantía | H31: 2020-09-26 | I31: PYG | J31: Guaraní | K31: 0 | L31: Sin Garantía
A32: (Incluir programas de forma individual) | D32: =IFERROR(VLOOKUP(C32,'Base de Monedas'!A:B,2,0),"") ->  | J32: =IFERROR(VLOOKUP(I32,'Base de Monedas'!A:B,2,0),"") -> 
A33: Préstamos de Entidades en el Exterior | D33: =IFERROR(VLOOKUP(C33,'Base de Monedas'!A:B,2,0),"") ->  | J33: =IFERROR(VLOOKUP(I33,'Base de Monedas'!A:B,2,0),"") -> 
A34: Nombre de la entidad financiera | D34: =IFERROR(VLOOKUP(C34,'Base de Monedas'!A:B,2,0),"") ->  | J34: =IFERROR(VLOOKUP(I34,'Base de Monedas'!A:B,2,0),"") -> 
A35: PRESTAMO MULTIBANK - PANAMA (c) | B35: 2021-04-25 | C35: USD | D35: =IFERROR(VLOOKUP(C35,'Base de Monedas'!A:B,2,0),"") -> Dólar estadounidense | E35: 1.301231012e+10 | F35: Fideicomiso | H35: 2020-12-25 | I35: USD | J35: =IFERROR(VLOOKUP(I35,'Base de Monedas'!A:B,2,0),"") -> Dólar estadounidense | K35: 18002252928 | L35: Fideicomiso
D36: =IFERROR(VLOOKUP(C36,'Base de Monedas'!A:B,2,0),"") ->  | J36: =IFERROR(VLOOKUP(I36,'Base de Monedas'!A:B,2,0),"") -> 
A37: Deudas bursátiles | D37: =IFERROR(VLOOKUP(C37,'Base de Monedas'!A:B,2,0),"") ->  | J37: =IFERROR(VLOOKUP(I37,'Base de Monedas'!A:B,2,0),"") -> 
A38: Senior Secured Global Notes | B38: 2025-01-29 | C38: USD | D38: =IFERROR(VLOOKUP(C38,'Base de Monedas'!A:B,2,0),"") -> Dólar estadounidense | E38: 0 | F38: Fiduciaria | H38: - | I38: - | J38: - | K38: - | L38: -
A39: Intereses préstamos entidades financieras a pagar | D39: =IFERROR(VLOOKUP(C39,'Base de Monedas'!A:B,2,0),"") ->  | J39: =IFERROR(VLOOKUP(I39,'Base de Monedas'!A:B,2,0),"") -> 
A40: Intereses a pagar Locales | B40: 2021-05-21 | C40: USD | D40: =IFERROR(VLOOKUP(C40,'Base de Monedas'!A:B,2,0),"") -> Dólar estadounidense | E40: 1204583301 | H40: 2020-09-04 | I40: USD | J40: =IFERROR(VLOOKUP(I40,'Base de Monedas'!A:B,2,0),"") -> Dólar estadounidense | K40: 8016831938
A41: Intereses a pagar en el Exterior | B41: 2021-04-25 | C41: USD | D41: =IFERROR(VLOOKUP(C41,'Base de Monedas'!A:B,2,0),"") -> Dólar estadounidense | E41: 455442532.6 | H41: 2020-12-25 | I41: USD | J41: =IFERROR(VLOOKUP(I41,'Base de Monedas'!A:B,2,0),"") -> Dólar estadounidense | K41: 825168384
A42: (-) Intereses a Devengar Locales | B42: 2021-05-21 | C42: USD | D42: =IFERROR(VLOOKUP(C42,'Base de Monedas'!A:B,2,0),"") -> Dólar estadounidense | E42: -8104940982 | H42: 2020-09-04 | I42: USD | J42: =IFERROR(VLOOKUP(I42,'Base de Monedas'!A:B,2,0),"") -> Dólar estadounidense | K42: -2.419911344e+10
A43: (-) Intereses a Devengar en el Exterior | B43: 2021-04-25 | C43: USD | D43: =IFERROR(VLOOKUP(C43,'Base de Monedas'!A:B,2,0),"") -> Dólar estadounidense | E43: -439753335.7 | H43: 2020-12-25 | I43: USD | J43: =IFERROR(VLOOKUP(I43,'Base de Monedas'!A:B,2,0),"") -> Dólar estadounidense | K43: -600852821
A45: Intereses deudas bursátiles a pagar | D45: =IFERROR(VLOOKUP(C45,'Base de Monedas'!A:B,2,0),"") -> 
A46: Intereses a pagar Locales | B46: 2020-09-26 | C46: PYG | D46: =IFERROR(VLOOKUP(C46,'Base de Monedas'!A:B,2,0),"") -> Guaraní | E46: 1773958630 | F46: Sin Garantía | H46: 2019-03-31 | I46: PYG | K46: 856117462.1 | L46: Sin Garantía
A47: Intereses a pagar en el Exterior | B47: 2020-07-29 | C47: USD | D47: =IFERROR(VLOOKUP(C47,'Base de Monedas'!A:B,2,0),"") -> Dólar estadounidense | E47: 0 | F47: Fiduciaria | H47: - | K47: 0
A48: (-) Intereses a Devengar Locales | B48: 2020-09-26 | C48: PYG | D48: =IFERROR(VLOOKUP(C48,'Base de Monedas'!A:B,2,0),"") -> Guaraní | E48: -308226457 | F48: Sin Garantía | H48: 2019-03-31 | I48: PYG | K48: -6261784721 | L48: Sin Garantía
A49: (-) Intereses a Devengar en el Exterior | B49: 2020-07-29 | C49: USD | D49: =IFERROR(VLOOKUP(C49,'Base de Monedas'!A:B,2,0),"") -> Dólar estadounidense | E49: 0 | F49: Fiduciaria | H49: - | K49: 0
A50: Total | D50: =IFERROR(VLOOKUP(C50,'Base de Monedas'!A:B,2,0),"") ->  | E50: =SUM($E$12:E49) -> 5.980120529e+10 | K50: =SUM($K$12:K49) -> 2.539412595e+11
A53: No Corrientes
B54: 20X2 | D54: =IFERROR(YEAR(Indice!B6),"2XX2") -> 2020 | J54: =IFERROR(YEAR(Indice!B6-365),"2XX1") -> 2019
A55: Préstamos de Entidades Locales | B55: Vencimiento | C55: Símbolo de Moneda | D55: Moneda | E55: Importe (miles de Gs) | F55: Tipo de garantía | H55: Vencimiento | I55: Símbolo de Moneda | J55: Moneda | K55: Importe (miles de Gs) | L55: Tipo de Garantía
A56: Nombre de la entidad financiera | D56: =IFERROR(VLOOKUP(C56,'Base de Monedas'!A:B,2,0),"") ->  | J56: =IFERROR(VLOOKUP(I56,'Base de Monedas'!A:B,2,0),"") -> 
A57: PRESTAMO BANCO SUDAMERIS - LP | E57: 0 | H57: 2026-10-01 | I57: USD | J57: =IFERROR(VLOOKUP(I57,'Base de Monedas'!A:B,2,0),"") -> Dólar estadounidense | K57: 73786560000 | L57: Fideicomiso
A58: PRESTAMO BANCO CONTINENTAL S.A.E.C.A. - LP | E58: 0 | H58: 2021-10-19 | I58: USD | J58: =IFERROR(VLOOKUP(I58,'Base de Monedas'!A:B,2,0),"") -> Dólar estadounidense | K58: 2417536000 | L58: Fideicomiso
A59: PRESTAMO BANCO BASA S.A LP | E59: 0 | H59: 2024-03-18 | I59: USD | J59: =IFERROR(VLOOKUP(I59,'Base de Monedas'!A:B,2,0),"") -> Dólar estadounidense | K59: 23528960000 | L59: Hipotecario
A60: PRESTAMO BANCO ATLAS S.A. LP | B60: 2023-07-21 | C60: USD | D60: =IFERROR(VLOOKUP(C60,'Base de Monedas'!A:B,2,0),"") -> Dólar estadounidense | E60: 11171215788 | F60: Fideicomiso | H60: 2023-07-21 | I60: USD | J60: =IFERROR(VLOOKUP(I60,'Base de Monedas'!A:B,2,0),"") -> Dólar estadounidense | K60: 1.408136079e+10 | L60: Fideicomiso
A61: PRESTAMO BANCO RIO (b) | H61: 2021-05-24 | I61: USD | J61: =IFERROR(VLOOKUP(I61,'Base de Monedas'!A:B,2,0),"") -> Dólar estadounidense | K61: 3643021121 | L61: Hipotecario
A62: PRESTAMO BANCO NACIONAL DE FOMENTO LP | B62: 2020-11-24 | C62: USD | D62: =IFERROR(VLOOKUP(C62,'Base de Monedas'!A:B,2,0),"") -> Dólar estadounidense | E62: 56691250000 | F62: Hipotecario | H62: 2024-11-10 | I62: USD | J62: =IFERROR(VLOOKUP(I62,'Base de Monedas'!A:B,2,0),"") -> Dólar estadounidense | K62: 52196800000 | L62: Hipotecario
A63: PRESTAMO VISION BANCO LP | B63: 2021-02-10 | C63: USD | D63: =IFERROR(VLOOKUP(C63,'Base de Monedas'!A:B,2,0),"") -> Dólar estadounidense | E63: 683569223 | F63: Hipotecario | H63: 2022-08-10 | I63: PYG | J63: =IFERROR(VLOOKUP(I63,'Base de Monedas'!A:B,2,0),"") -> Guaraní | K63: 887305573 | L63: Sola Firma
A64: (incluir otras entidades) | D64: =IFERROR(VLOOKUP(C64,'Base de Monedas'!A:B,2,0),"") ->  | J64: =IFERROR(VLOOKUP(I64,'Base de Monedas'!A:B,2,0),"") -> 
A65: Deudas bursátiles | D65: =IFERROR(VLOOKUP(C65,'Base de Monedas'!A:B,2,0),"") ->  | J65: =IFERROR(VLOOKUP(I65,'Base de Monedas'!A:B,2,0),"") -> 
A66: SERIE03F5820 | B66: 2021-01-14 | C66: PYG | D66: =IFERROR(VLOOKUP(C66,'Base de Monedas'!A:B,2,0),"") -> Guaraní | E66: 0 | F66: Sin garantia | H66: 2021-01-14 | I66: PYG | J66: Guaraní | K66: 4000000000 | L66: Sin Garantía
A67: SERIE06F6007 | B67: 2021-01-28 | C67: PYG | D67: =IFERROR(VLOOKUP(C67,'Base de Monedas'!A:B,2,0),"") -> Guaraní | E67: 0 | F67: Sin garantia | H67: 2021-01-28 | I67: PYG | J67: Guaraní | K67: 4000000000 | L67: Sin Garantía
A68: SERIE08F6377 | B68: 2021-03-30 | C68: PYG | D68: =IFERROR(VLOOKUP(C68,'Base de Monedas'!A:B,2,0),"") -> Guaraní | E68: 0 | F68: Sin garantia | H68: 2021-03-30 | I68: PYG | J68: Guaraní | K68: 5500000000 | L68: Sin Garantía
A69: SERIE03F5861 | B69: 2021-01-14 | C69: USD | D69: =IFERROR(VLOOKUP(C69,'Base de Monedas'!A:B,2,0),"") -> Dólar estadounidense | E69: 0 | F69: Sin garantia | H69: 2021-01-14 | I69: USD | J69: Dólar estadounidense | K69: 6464000000 | L69: Sin Garantía
A70: SERIE04F5878 | B70: 2022-01-13 | C70: USD | D70: =IFERROR(VLOOKUP(C70,'Base de Monedas'!A:B,2,0),"") -> Dólar estadounidense | E70: 0 | F70: Sin garantia | H70: 2022-01-13 | I70: USD | J70: Dólar estadounidense | K70: 6464000000 | L70: Sin Garantía
A71: SERIE07F6030 | B71: 2021-01-28 | C71: USD | D71: =IFERROR(VLOOKUP(C71,'Base de Monedas'!A:B,2,0),"") -> Dólar estadounidense | E71: 0 | F71: Sin garantia | H71: 2021-01-28 | I71: USD | J71: Dólar estadounidense | K71: 6464000000 | L71: Sin Garantía
A72: SERIE08F6047 | B72: 2022-01-27 | C72: USD | D72: =IFERROR(VLOOKUP(C72,'Base de Monedas'!A:B,2,0),"") -> Dólar estadounidense | E72: 0 | F72: Sin garantia | H72: 2022-01-27 | I72: USD | J72: Dólar estadounidense | K72: 6464000000 | L72: Sin Garantía
A73: SERIE11F7362 | B73: 2022-05-26 | C73: USD | D73: =IFERROR(VLOOKUP(C73,'Base de Monedas'!A:B,2,0),"") -> Dólar estadounidense | E73: 0 | F73: Sin garantia | H73: 2022-05-26 | I73: USD | J73: Dólar estadounidense | K73: 4848000000 | L73: Sin Garantía
A74: Préstamos de Entidades en el Exterior | D74: =IFERROR(VLOOKUP(C74,'Base de Monedas'!A:B,2,0),"") ->  | J74: =IFERROR(VLOOKUP(I74,'Base de Monedas'!A:B,2,0),"") -> 
A75: Nombre de la entidad financiera | D75: =IFERROR(VLOOKUP(C75,'Base de Monedas'!A:B,2,0),"") ->  | J75: =IFERROR(VLOOKUP(I75,'Base de Monedas'!A:B,2,0),"") -> 
A76: Nombre de la entidad financiera | D76: =IFERROR(VLOOKUP(C76,'Base de Monedas'!A:B,2,0),"") ->  | J76: =IFERROR(VLOOKUP(I76,'Base de Monedas'!A:B,2,0),"") -> 
A77: (incluir otras entidades) | D77: =IFERROR(VLOOKUP(C77,'Base de Monedas'!A:B,2,0),"") ->  | J77: =IFERROR(VLOOKUP(I77,'Base de Monedas'!A:B,2,0),"") -> 
A78: Deudas bursátiles | D78: =IFERROR(VLOOKUP(C78,'Base de Monedas'!A:B,2,0),"") ->  | J78: =IFERROR(VLOOKUP(I78,'Base de Monedas'!A:B,2,0),"") -> 
A79: Senior Secured Global Notes | B79: 2025-01-29 | C79: USD | D79: =IFERROR(VLOOKUP(C79,'Base de Monedas'!A:B,2,0),"") -> Dólar estadounidense | E79: 682000000000 | F79: Fiduciaria | H79: - | I79: - | K79: - | L79: -
A80: Intereses préstamos entidades financieras a pagar | D80: =IFERROR(VLOOKUP(C80,'Base de Monedas'!A:B,2,0),"") ->  | J80: =IFERROR(VLOOKUP(I80,'Base de Monedas'!A:B,2,0),"") -> 
A81: Intereses a pagar Locales | B81: 2023-07-21 | C81: USD | D81: =IFERROR(VLOOKUP(C81,'Base de Monedas'!A:B,2,0),"") -> Dólar estadounidense | E81: 10990961070 | H81: 2026-10-01 | I81: USD | J81: =IFERROR(VLOOKUP(I81,'Base de Monedas'!A:B,2,0),"") -> Dólar estadounidense | K81: 4.114088967e+10
A82: Intereses a pagar en el Exterior | J82: =IFERROR(VLOOKUP(I82,'Base de Monedas'!A:B,2,0),"") -> 
A83: (-) Intereses a Devengar Locales | B83: 2023-07-21 | C83: USD | D83: =IFERROR(VLOOKUP(C83,'Base de Monedas'!A:B,2,0),"") -> Dólar estadounidense | E83: -10003602453 | H83: 2026-10-01 | I83: USD | J83: =IFERROR(VLOOKUP(I83,'Base de Monedas'!A:B,2,0),"") -> Dólar estadounidense | K83: -3.810052968e+10
A84: (-) Intereses a Devengar en el Exterior
A86: Intereses deudas bursátiles a pagar | D86: =IFERROR(VLOOKUP(C86,'Base de Monedas'!A:B,2,0),"") ->  | J86: =IFERROR(VLOOKUP(I86,'Base de Monedas'!A:B,2,0),"") -> 
A87: Intereses a pagar Locales | B87: - | F87: - | H87: 2019-03-31 | I87: PYG | J87: =IFERROR(VLOOKUP(I87,'Base de Monedas'!A:B,2,0),"") -> Guaraní | K87: =3014887342.46575+328 -> 3014887670 | L87: Sin Garantía
A88: Intereses a pagar en el Exterior | B88: 2025-01-29 | C88: USD | D88: =IFERROR(VLOOKUP(C88,'Base de Monedas'!A:B,2,0),"") -> Dólar estadounidense | E88: 227191250000 | F88: Fiduciaria | H88: - | K88: - | L88: -
A89: (-) Intereses a Devengar Locales | B89: - | D89: =IFERROR(VLOOKUP(C89,'Base de Monedas'!A:B,2,0),"") ->  | E89: - | F89: - | H89: 2019-03-31 | I89: PYG | J89: =IFERROR(VLOOKUP(I89,'Base de Monedas'!A:B,2,0),"") -> Guaraní | K89: -3006344438 | L89: Sin Garantía
A90: (-) Intereses a Devengar en el Exterior | B90: 2025-01-29 | C90: USD | D90: =IFERROR(VLOOKUP(C90,'Base de Monedas'!A:B,2,0),"") -> Dólar estadounidense | E90: -226325125000 | F90: Fiduciaria | H90: - | K90: - | L90: -
A91: Total | D91: =IFERROR(VLOOKUP(C91,'Base de Monedas'!A:B,2,0),"") ->  | E91: =SUM($E$56:E90) -> 752399518628 | J91: =IFERROR(VLOOKUP(I91,'Base de Monedas'!A:B,2,0),"") ->  | K91: =SUM(K57:K90) -> 2.177944467e+11
J92: =IFERROR(VLOOKUP(I92,'Base de Monedas'!H:I,2,0),"") -> 
A93: 14. 1 - DEUDAS FINANCIERAS
A95: Durante el segundo trimestre del 2020, los intereses pactados en guaraníes se ubican entre el 10% y 12% anual y los intereses en dólares estadounidenses entre el 6,50% y el 10% anual.
A97: a) En fecha 22 de mayo de 2017 se firmó la Escritura No. 422 ante el escribano Luis Enrique Peroni Giralt, mediante la cual se procedió a otorgar en garantía de operaciones bancarias los bienes inmuebles conformados por Fincas N°R01 189 y N°R01 182 del Distrito de Fuerte Olimpo de la Sociedad y la concesión de una línea de crédito de hasta dólares un millón quinientos cincuenta mil (US$ 1.550.000.-).
A99: AGROGANADERA CONCEPCION S.A. autorizando a la Sociedad FRIGORÍFICO CONCEPCIÓN S.A. a constituir un Patrimonio Autónomo dentro de un “Contrato de Fideicomiso de Garantía entre AGROGANADERA CONCEPCION S.A. Fideicomitente – Deudora, FRIGORIFICO CONCEPCION S.A. como Deudor, el Sr. JAIR ANTONIO DE LIMA como Deudor, Banco Atlas S.A. como beneficiario y FINLATINA SOCIEDAD ANONIMA DE FINANZAS como fiduciaria.
A101: Posteriormente la sociedad procedió a realizar la modificación por aumento de línea de crédito y del plazo del Contrato de Fideicomiso, según Escritura Pública No. 589 de fecha 29 de mayo de 2018, pasada ante el escribano Luis Enrique Peroni Giralt, mediante la cual la nueva línea de crédito reemplaza a la anterior y asciende a la suma de US$. 5.000.000.-
A103: La duración del Contrato de Fideicomiso de Garantía, contenido en la escritura No. 589 de fecha 29 de mayo de 2018 es de 7 años contados a partir de la firma de la presente adenda.
A105: b) El Acta de directorio Nº 99, de la sesión Frigorífico Concepción S.A., Concepción Palace Hotel S.A celebrada el 02/09/2010 de Frigorífico Concepción S.A. autorizó la compra de un inmueble con sus instalaciones, mejoras y equipamientos destinados a Matadero, ubicado en la ciudad de Encarnación, al valor total de US$. 1.200.000.-, de propiedad del Sr. Lulio Rolando Rojas Pagani y de la Sra. Cristina Maria Isabel Garcia de Rojas, con quienes se celebró un Contrato de Compra – Venta, en fecha 15/09/2010, en el cual se pactaron las condiciones particulares de la operación.
A107: Parte de la operación fue financiada con intervención bancaria, para lo cual el día 28/09/2010, según Acta de Directorio Nº 100, la Sociedad resolvió solicitar al Banco Itapúa S.A.E.C.A. un crédito Hipotecario y Prendario para financiar la adquisición mencionada. A tal efecto y ante la Escribana María Angélica Rojas Duarte de Paredes, fue formalizada la transacción, según Escritura Pública Nº 42 de fecha 18/10/2010, en la cual se perfeccionó la transferencia, con garantía hipotecaria y prendaria de las maquinarias existentes en la planta y la concesión de una línea de crédito de hasta dólares seiscientos mil (US$. 600.000.-). En el marco de la línea de crédito concedida por el Banco Itapúa S.A.E.C.A. fue desembolsado un crédito de dólares quinientos ocho mil (US$. 508.000).
A109: c) En fecha 30 de setiembre del 2015 se firmó la Escritura No. 828 ante el escribano Luis Enrique Peroni Giralt, mediante la cual se procedió a otorgar en garantía de operaciones bancarias los bienes inmuebles conformados por Fincas No.2.275, No.102, No.3.446 y No.3.445 de la Sociedad.
A111: CONCEPCIÓN PALACE HOTEL S.A. autorizando a la Sociedad FRIGORÍFICO CONCEPCIÓN S.A. a constituir un Patrimonio Autónomo dentro de un “Contrato de Fideicomiso de Garantía entre Frigorífico Concepción S.A., Concepción Palace Hotel S.A. (fideicomitentes) Banco Atlas S.A. (fiduciario) y Multibank INC. –PANAMA (beneficiario)”.
A113: Posteriormente la sociedad procedió a realizar la modificación del Contrato de Fideicomiso de Garantía, según Escritura Pública No. 1167, de fecha 14 de diciembre del 2017, pasada ante el escribano Luis Enrique Peroni Giralt, mediante la cual la nueva línea de crédito reemplaza a la anterior y asciende a la suma de US$. 4.500.000.- o su equivalente en moneda local, más los intereses, comisiones y gastos correspondientes a las operaciones crediticias celebradas con el beneficiario.
A115: La duración del Contrato de Fideicomiso de Garantía, contenido en la escritura No. 828 del 30/09/2015 tiene una duración total de 5 años, la cual permanece invariable en las adendas posteriores.
A117: 14.2 AVALES OBTENIDOS
A119: Al 30 de junio de 2020, Frigorífico Concepción S.A. bajo las líneas de crédito autorizadas con Bancos del sistema financiero, ha obtenido los avales descrito a continuación, destinados a garantizar las devoluciones de IVA CREDITO EXPORTADOR en proceso ante la Subsecretaría de Estado de Tributación – Ministerio de Hacienda;
A121: Período de recupero de crédito | B121: Banco | C121: Valor Garantía
A122: Mes de diciembre 2019 | B122: Banco Sudameris S.A.E.C.A. | C122: 928662062
A123: Total | C123: 928662062
A125: 14.3 BONOS BURSATILES - LOCALES
A127: La Sociedad obtuvo en fecha 10 de junio del 2.010, según Resolución 1.259/10, su inscripción como “Sociedad Emisora de Títulos Valores de oferta pública que no sean acciones, de acuerdo a lo dispuesto en la Ley 1.284/98” ante la Comisión Nacional de Valores, tras haber cumplido con todos los requerimientos legales exigidos por las disposiciones reglamentarias vigentes.
A129: a) De acuerdo a la resolución N° 1932/19, la Bolsa de Valores y Productos de Asunción S.A. procedió a Registrar la Emisión de Bonos Bursátiles de Corto Plazo, realizada por Frigorífico Concepción S.A., cuyas características son las descriptas en el Acta de Directorio Nº 371 de fecha 17 de setiembre de 2019, y se sintetizan a continuación:
A131: Valor Nominal de la Emisión: | B131: USD. 2.200.000 (Dólares americanos dos millones doscientos mil).-
A132: Moneda: | B132: Dólares estadounidenses.
A133: Serie: | B133: Serie 1 (Uno) USD. 1.100.000.- (Dólares americanos un millón cien mil).
A134: Tipo de instrumento: | B134: Títulos globales. Ajustándose a los términos.
A135: Corte mínimo de los Bonos: | B135: USD. 1.000 (Dólares americanos Un mil con 00/100).
A136: Tasa de interés: | B136: Cupón cero, estos títulos serán negociados por precio.
A137: Plazo de Vencimiento: | B137: 270 días
A138: Calificación de riesgo: | B138: py NIVEL 3 (N-3)
A140: b) De acuerdo a la resolución N° 1931/19, la Bolsa de Valores y Productos de Asunción S.A. procedió a Registrar la Emisión de Bonos Bursátiles de Corto Plazo, realizada por Frigorífico Concepción S.A., cuyas características son las descriptas en el Acta de Directorio Nº 371 de fecha 17 de setiembre de 2019, y se sintetizan a continuación:
A141: Valor Nominal de la Emisión: | B141: G. 13.000.000.000 (Guaraníes Trece mil millones).-
A142: Moneda: | B142: Guaraníes
A143: Serie: | B143: Serie 1 (Uno) G.6.500.000.000.- (Guaraníes Seis mil quinientos millones).
A144: Tipo de instrumento: | B144: Títulos globales. Ajustándose a los términos.
A145: Corte mínimo de los Bonos: | B145: G. 1.000.000.- (Guaraníes Un millón)
A146: Tasa de interés: | B146: Cupón Cero, estos títulos serán negociados por precio.
A147: Plazo de Vencimiento: | B147: 270 días.
A148: Calificación de riesgo: | B148: py NIVEL 3 (N-3)
A150: c) De acuerdo a la resolución N° 1991/20 la Bolsa de Valores y Productos de Asunción S.A. procedió a Registrar la Emisión de Bonos Bursátiles de Corto Plazo, realizada por Frigorífico Concepción S.A., cuyas características son las descriptas en el Acta de Directorio Nº 371 de fecha 17 de setiembre de 2019, y se sintetizan a continuación:
A151: Valor Nominal de la Emisión: | B151: USD. 2.200.000 (Dólares americanos dos millones doscientos mil).-
A152: Moneda: | B152: Dólares estadounidenses.
A153: Serie: | B153: Serie 2 (Dos) USD. 1.100.000.- (Dólares americanos un millón cien mil).
A154: Tipo de instrumento: | B154: Títulos globales. Ajustándose a los términos.
A155: Corte mínimo de los Bonos: | B155: USD. 1.000 (Dólares americanos Un mil con 00/100).
A156: Tasa de interés: | B156: Cupón cero, estos títulos serán negociados por precio.
A157: Plazo de Vencimiento: | B157: 270 días
A158: Calificación de riesgo: | B158: py NIVEL 3 (N-3)
A160: d) De acuerdo a la resolución N° 1990/20, la Bolsa de Valores y Productos de Asunción S.A. procedió a Registrar la Emisión de Bonos Bursátiles de Corto Plazo, realizada por Frigorífico Concepción S.A., cuyas características son las descriptas en el Acta de Directorio Nº 371 de fecha 17 de setiembre de 2019, y se sintetizan a continuación:
A161: Valor Nominal de la Emisión: | B161: G. 13.000.000.000 (Guaraníes Trece mil millones).-
A162: Moneda: | B162: Guaraníes
A163: Serie: | B163: Serie 2 (Dos) G.6.500.000.000.- (Guaraníes Seis mil quinientos millones).
A164: Tipo de instrumento: | B164: Títulos globales. Ajustándose a los términos.
A165: Corte mínimo de los Bonos: | B165: G. 1.000.000.- (Guaraníes Un millón)
A166: Tasa de interés: | B166: Cupón Cero, estos títulos serán negociados por precio.
A167: Plazo de Vencimiento: | B167: 270 días.
A168: Calificación de riesgo: | B168: py NIVEL 3 (N-3)
A170: e) De acuerdo a la resolución N°2059/20, la Bolsa de Valores y Productos de Asunción S.A. procedió a Registrar la Emisión de Bonos Bursátiles de Corto Plazo, realizada por Frigorífico Concepción S.A., cuyas características son las descriptas en el Acta de Directorio Nº 389 de fecha 11 de mayo de 2019, y se sintetizan a continuación:
A171: Valor Nominal de la Emisión: | B171: G. 10.000.000.000 (Guaraníes Diez mil millones).-
A172: Moneda: | B172: Guaraníes
A173: Serie: | B173: Serie 1 (Uno) G.5.000.000.000.- (Guaraníes Cinco mil millones).
A174: Tipo de instrumento: | B174: Títulos globales. Ajustándose a los términos.
A175: Corte mínimo de los Bonos: | B175: G. 1.000.000.- (Guaraníes Un millón)
A176: Tasa de interés: | B176: Cupón Cero, estos títulos serán negociados por precio.
A177: Plazo de Vencimiento: | B177: 360 días.
A178: Calificación de riesgo: | B178: py NIVEL 3 (N-3)
A180: f) De acuerdo a la resolución N°2059/20, la Bolsa de Valores y Productos de Asunción S.A. procedió a Registrar la Emisión de Bonos Bursátiles de Corto Plazo, realizada por Frigorífico Concepción S.A., cuyas características son las descriptas en el Acta de Directorio Nº 389 de fecha 11 de mayo de 2019, y se sintetizan a continuación:
A182: Valor Nominal de la Emisión: | B182: USD. 1.500.000 (Dólares americanos Un millon quinientos mil).-
A183: Moneda: | B183: Dólares estadounidenses.
A184: Serie: | B184: Serie 1 (Uno) USD 1.500.000 -(Dólares americanos Un millon quinientos mil).-
A185: Tipo de instrumento: | B185: Títulos globales. Ajustándose a los términos.
A186: Corte mínimo de los Bonos: | B186: USD. 1.000 ( Dólares americanos Un mil con 00/100)
A187: Tasa de interés: | B187: Cupón Cero, estos títulos serán negociados por precio.
A188: Plazo de Vencimiento: | B188: 360 días.
A189: Calificación de riesgo: | B189: py NIVEL 3 (N-3)
A191: Las emisiones de Bonos Bursátiles a corto plazo mencionados en los capítulos precedentes tienen establecidos como Destino de los fondos: la captación de capital operativo. La sociedad logró colocar el 100% de los bonos emitidos, con lo cual queda demostrada la confianza que FRIGORIFICO CONCEPCIÓN S.A. obtuvo una vez más del mercado bursátil.
A193: 14.4 BONOS BURSATILES - INTERNACIONALES
A195: El 29 de enero de 2020 FRIGORIFICO CONCEPCION S.A. ha realizado una emisión de bonos internacionales, bajo la coordinación general de Oppenheimer & Co., como agente de colocación y registrados en la Bolsa de Luxemburgo, según el siguiente detalle:
A197: Mercado Internacional
A198: Emisor | B198: FRIGORIFICO CONCEPCION S.A.
A199: Tipo de Bonos | B199: Senior Secured Global Notes
A200: Modalidad | B200: Bonos emitidos bajo la Rule 144ª/Reg. S
A201: Principal en USD | B201: USD 100,000,000.- Cien millones de dólares americanos.
A202: Vencimiento del Capital | B202: En cuatro pagos iguales en las siguientes fechas:
B204: - 29 de Julio de 2023,
B205: - 29 de Enero de 2024,
B206: - 29 de Julio de 2024 y
B207: - 29 de Enero de 2025.
A208: Tasa de Interés | B208: 10,25% anual.
A209: Vencimiento de los Intereses | B209: Los pagos de intereses serán semestrales a ser pagados cada 29 de Enero y cada 29 de Julio, contando a partir del 29 de Enero de 2020.
A210: Destino del producido de los Bonos Internacionales | B210: Pago de créditos con entidades bancarias y rescate anticipado de bonos locales, vigentes a la fecha de esta emisión.
A212: Garantía | B212: Los bonos están garantizados a través de un Contrato de fideicomiso de administración y garantía, celebrado entre Frigorífico Concepción S.A. (fideicomitente), Financiera Finexpar S.A.E.C.A. (fiduciaria) y Wilmington Trust, National Association como fiduciario internacional representante de los tenedores de bonos.
A214: Cabe mencionar que esta primera emisión de bonos internacionales fue totalmente colocada en el mercado internacional, constituyéndonos en la primera empresa comercial paraguaya del segmento alimenticio que realiza este tipo de transacciones a nivel global, sentando en tal sentido, un importante precedente.
A215: ..//..

Sheet Nota 15
A1: =Indice!C1 -> FRIGORIFICO CONCEPCION S.A. | D1: BG
A5: NOTA 15 – PORCION CORRIENTE DE LA DEUDA A LARGO PLAZO
A6: Cifras expresadas en guaraníes
A8: Porción corriente de la deuda a largo plazo | B8: 2020-06-30 | C8: 2019-12-31
A9: Cuentas por pagar comerciales | B9: 0 | C9: 0
A10: Préstamos bancarios | B10: 27137090140 | C10: 1.000242323e+11
A11: Bonos bursátiles | B11: 14019813087 | C11: 77644000000
A12: Intereses bancarios a pagar | B12: 7624922278 | C12: 2.66586435e+10
A13: Intereses bursatiles a pagar en el exterior | B13: 71115186546 | C13: 7734477238
A14: (-) Intereses a Devengar en el Exterior | B14: -41454019633 | C14: 0
A15: Total general | B15: =SUM($B$9:B14) -> 78442992418 | C15: =SUM($C$9:C14) -> 2.120613531e+11

Sheet Nota 16
A1: =Indice!C1 -> FRIGORIFICO CONCEPCION S.A. | F1: BG
A4: NOTA 16 – REMUNERACIONES Y CARGAS SOCIALES A PAGAR
A5: Cifras expresadas en guaraníes
A7: Remuneraciones y cargas sociales a pagar | B7: 2020-06-30 | C7: 2019-12-31
A8: Sueldo y otras remuneraciones a pagar | B8: - | C8: -
A9: Aportes y retenciones a pagar | B9: =1073169007+2265262771 -> 3338431778 | C9: 1002922187
A10: Remuneraciones al personal superior a pagar | B10: - | C10: -
A11: (Indicar otras cuentas)
A12: Total | B12: =SUM($B$8:B11) -> 3338431778 | C12: =SUM($C$8:C11) -> 1002922187

Sheet Nota 17
A1: =Indice!C1 -> FRIGORIFICO CONCEPCION S.A. | G1: BG
A5: NOTA 17 – IMPUESTOS A PAGAR
A6: Cifras expresadas en guaraníes
A8: Impuestos a pagar | B8: 2020-06-30 | C8: 2019-12-31
A9: Impuesto a la renta a pagar | B9: 10908671085 | C9: 4165070386
A10: Otros impuestos a pagar | B10: - | C10: -
A11: (Indicar otros impuestos) | B11: - | C11: -
A12: Total | B12: =SUM($B$9:B11) -> 10908671085 | C12: =SUM($C$9:C11) -> 4165070386

Sheet Nota 18
A1: =Indice!C1 -> FRIGORIFICO CONCEPCION S.A. | D1: BG
A2: NO APLICABLE
A4: NOTA 18 - PROVISIONES
A5: Cifras expresadas en guaraníes
A7: Provisiones | B7: 2020-06-30 | C7: 2019-12-31
A9: Alquileres a Pagar | B9: - | C9: -
A10: Servicios Basicos a Pagar | B10: - | C10: -
A11: Honorarios Profesionales a Pagar | B11: - | C11: -
A12: (Indicar cuentas)
A13: Total | B13: =SUM($B$9:B12) -> 0 | C13: =SUM($C$9:C12) -> 0

Sheet Nota 19
A1: =Indice!C1 -> FRIGORIFICO CONCEPCION S.A. | D1: BG
A3: NOTA 19 – OTROS PASIVOS CORRIENTES y NO CORRIENTES
A4: Cifras expresadas en guaraníes
A6: Corrientes | B6: 2020-06-30 | C6: 2019-12-31 | E6: No Corrientes | F6: 2020-06-30 | G6: 2019-12-31
A7: Retencion de IVA a pagar | B7: 2564659012 | C7: 2405165021 | E7: Retencion de IVA a pagar | F7: - | G7: -
A8: Retencion Impuesto a la renta a Pagar | B8: 3918352 | C8: - | E8: Retencion Impuesto a la renta a Pagar | F8: - | G8: -
A9: Impuestos diferidos | B9: - | C9: - | E9: Impuestos diferidos | F9: 10003822688 | G9: 10003822688
A10: Otros ingresos diferidos (detallar cuenta) | B10: - | C10: - | E10: Otros ingresos diferidos | F10: - | G10: -
A11: Otros Pasivos con Entidades relacionadas | B11: 716178806 | C11: 1123430940 | E11: Otros Pasivos con Entidades relacionadas | F11: - | G11: -
A12: Previsiones para contingencias/Indemnizaciones y despidos | B12: 5797081173 | C12: 5797081173 | E12: Previsiones para contingencias/Indemnizaciones y despidos | F12: - | G12: -
A13: Otros pasivos | B13: 15798636882 | C13: 59269497 | E13: (nuevas cuentas a incluir)
A14: Total | B14: =SUM(B7:B13) -> 24880474225 | C14: =SUM(C7:C13) -> 9384946631 | E14: Total | F14: =SUM(F8:F13) -> 10003822688 | G14: =SUM(G8:G13) -> 10003822688

Sheet Nota 20
A1: =Indice!C1 -> FRIGORIFICO CONCEPCION S.A. | D1: BG
A4: NOTA 20 – CAPITAL INTEGRADO
A6: Fecha | B6: 2020-06-30 | C6: 2019-12-31
A7: Monto Capital Social | B7: 386400000000 | C7: 386400000000
A8: Monto Capital Integrado | B8: =+B7 -> 386400000000 | C8: =+C7 -> 386400000000
A9: Cantidad de Acciones | B9: 3864 | C9: 3864
A10: Valor Nominal de Acciones | B10: =B8/B9 -> 100000000 | C10: =C8/C9 -> 100000000
A11: Total | B11: =+B8 -> 386400000000 | C11: =+C8 -> 386400000000

Sheet Nota 21
A1: =Indice!C1 -> FRIGORIFICO CONCEPCION S.A. | F1: BG
A4: NOTA 21 – RESERVAS
A5: Cifras expresadas en guaraníes
B7: 2020-06-30 | C7: 2019-12-31
A8: a Reserva de revalúo | B8: 61543828060 | C8: 61543828060
A13: b Reserva legal | B13: 24610112891 | C13: 24610112891
A17: c Reservas estatutarias | B17: 0 | C17: 0
A21: d Reservas facultativas | B21: =+SUM($B$22:B27) -> 0 | C21: =+SUM($C$22:C27) -> 0
A22: d.1. (nuevas cuentas a incluir)
A23: d.2. (nuevas cuentas a incluir)
A29: e Reservas especiales | B29: 90034404188 | C29: 90034404188

Sheet Nota 22
A1: =Indice!C1 -> FRIGORIFICO CONCEPCION S.A. | F1: BG
A5: NOTA 21 – DIFERENCIA TRANSITORIA POR CONVERSION
A6: Cifras expresadas en guaraníes
B8: =IFERROR(IF(Indice!B6="","2XX2",YEAR(Indice!B6)),"2XX2") -> 2020 | C8: =+IFERROR(YEAR(Indice!B6-365),"2XX1") -> 2019
A9: Diferencia transitoria por conversión | B9: - | C9: -

Sheet Nota 23
A1: =Indice!C1 -> FRIGORIFICO CONCEPCION S.A. | F1: BG
A4: NOTA 23 – RESULTADOS ACUMULADOS
A5: Cifras expresadas en guaraníes
B7: 2020-06-30 | C7: 2019-12-31
A8: Resultado de ejercicios anteriores | B8: 69594754634 | C8: 48458148
A9: Resultado del ejercicio | B9: 98178039763 | C9: 69546296486
A10: Total | B10: =SUM($B$8:B9) -> 167772794397 | C10: =SUM($C$8:C9) -> 69594754634

Sheet Nota 24
A1: =Indice!C1 -> FRIGORIFICO CONCEPCION S.A. | F1: BG
A4: NOTA 24 – INTERES MINORITARIO
A5: Cifras expresadas en guaraníes
B7: =IFERROR(IF(Indice!B6="","2XX2",YEAR(Indice!B6)),"2XX2") -> 2020 | C7: =+IFERROR(YEAR(Indice!B6-365),"2XX1") -> 2019
A8: Interes Minoritario | B8: - | C8: -

Sheet Nota 25
A1: =Indice!C1 -> FRIGORIFICO CONCEPCION S.A. | E1: ER
A5: NOTA 25 – VENTAS
A6: Cifras expresadas en guaraníes
B7: 2020-06-30 | C7: 2019-06-30
A8: Ventas
A9: Local | B9: 134259390119 | C9: 135208050817
A10: Exterior | B10: 1159333746446 | C10: 544135701604
A11: Total | B11: =SUM($B$9:B10) -> 1293593136565 | C11: =SUM($C$9:C10) -> 679343752421

Sheet Nota 26
A1: =Indice!C1 -> FRIGORIFICO CONCEPCION S.A. | E1: ER
A5: NOTA 26 - COSTO DE VENTAS
A6: Cifras expresadas en guaraníes
A8: Costo de ventas | B8: 2020-06-30 | C8: 2019-06-30
A10: Existencia inicial del inventario | B10: 374363765644 | C10: 373757947031
A11: + Compras de producción | B11: 913203405799 | C11: 347672141292
A12: + Costo de Bienes de Cambio | B12: 188176212993 | C12: 186873557758
A13: - Existencia final de inventario | B13: -403616941383 | C13: -313949444083
A14: Total costo de ventas | B14: =SUM($B$9:B13) -> 1072126443053 | C14: =SUM($C$9:C13) -> 594354201998

Sheet Nota 27
A1: =Indice!C1 -> FRIGORIFICO CONCEPCION S.A. | G1: ER
A5: NOTA 27 - GASTOS
A7: El rubro está compuesto de la siguiente forma:
A9: Cifras expresadas en guaraníes
C10: 2020-06-30 | F10: 2019-06-30
B11: Gastos de Ventas | C11: Gastos Administrativos | D11: Total | E11: Gastos de Ventas | F11: Gastos Administrativos | G11: Total
A12: Movilidad y viáticos | B12: 0 | C12: 0 | D12: =+C12+B12 -> 0 | E12: 0 | F12: 0 | G12: =+F12+E12 -> 0
A13: Gastos de alquiler | B13: 0 | C13: 0 | D13: =+C13+B13 -> 0 | E13: 0 | F13: 0 | G13: =+F13+E13 -> 0
A14: Computación y redes | B14: 0 | C14: 0 | D14: =+C14+B14 -> 0 | E14: 0 | F14: 0 | G14: =+F14+E14 -> 0
A15: Gastos por servicios | B15: 0 | C15: 0 | D15: 0 | E15: 0 | F15: 0 | G15: 0
A16: Honorarios profesionales y asesoramiento | B16: 0 | C16: 3098902787 | D16: 3098902787 | E16: 0 | F16: 0 | G16: 0
A17: Investigación de mercado | B17: 0 | C17: 0 | D17: 0 | E17: 0 | G17: 0
A18: Impuestos y tasas | B18: 0 | C18: 513874853 | D18: 513874853 | E18: 0 | F18: 394805786 | G18: 394805786
A19: Gastos de reparación y mantenimiento | B19: 568071690 | C19: 0 | D19: 568071690 | E19: 0 | F19: 0 | G19: 0
A20: Gastos del personal y capacitación | B20: 0 | C20: 0 | D20: 0 | E20: 0 | F20: 0 | G20: 0
A21: Seguros pagados | B21: 0 | C21: 1398765273 | D21: 1398765273 | E21: 0 | F21: 968749699 | G21: 968749699
A22: Otros gastos de operación | B22: 10460498614 | C22: 0 | D22: 10460498614 | E22: 0 | F22: 6963270281 | G22: 6963270281
A23: Remuneraciones de administradores, directores, síndicos y consejo de vigilancia | B23: 0 | C23: 1808813998 | D23: 1808813998 | E23: 0 | F23: 1780330238 | G23: 1780330238
A24: Sueldos y Jornales | B24: 0 | C24: 4975739083 | D24: 4975739083 | E24: 0 | F24: 8557159431 | G24: 8557159431
A25: Contribuciones Sociales | B25: 0 | C25: 201455951 | D25: 201455951 | E25: 0 | F25: 181896933 | G25: 181896933
A26: Regalías y Honorarios por servicios técnicos | B26: 0 | C26: 0 | D26: 0 | E26: 0 | F26: 0 | G26: 0
A27: Gastos de Publicidad y Propaganda | B27: 0 | C27: 1069146085 | D27: 1069146085 | E27: 0 | F27: 1167202364 | G27: 1167202364
A28: Intereses, multas y recargos impositivos | B28: 0 | C28: 0 | D28: 0 | E28: 0 | G28: 0
A29: Intereses a bancos e instituciones financieras | B29: 0 | C29: 0 | D29: 0 | E29: 0 | F29: 0 | G29: 0
A30: Depreciación bienes de uso | B30: 0 | C30: 7804339680 | D30: 7804339680 | E30: 0 | F30: 9200206468 | G30: 9200206468
A31: Amortización activos intangibles | B31: 0 | C31: 0 | D31: 0 | E31: 0 | F31: 0 | G31: 0
A32: Comisiones | B32: 2526724539 | C32: 0 | D32: 2526724539 | E32: 2553368510 | F32: 0 | G32: 2553368510
A33: Gastos generales | B33: 0 | C33: 5513801742 | D33: 5513801742 | E33: 4017639933 | F33: 0 | G33: 4017639933
A34: Honorarios fiduciarios | B34: 0 | C34: 1094798771 | D34: 1094798771 | E34: 0 | F34: 0 | G34: 0
A35: Gastos de exportación - importación | B35: 16107330563 | C35: 0 | D35: 16107330563 | E35: 9410160948 | F35: 0 | G35: 9410160948
A36: Total | B36: =SUM(B12:B35) -> 29662625406 | C36: =+SUM($C$12:C34) -> 27479638223 | D36: =+SUM($D$12:D35) -> 57142263629 | E36: =SUM(E12:E35) -> 15981169391 | F36: =+SUM($F$12:F35) -> 29213621200 | G36: =+SUM($G$12:G35) -> 45194790591

Sheet Nota 28
A1: =Indice!C1 -> FRIGORIFICO CONCEPCION S.A. | E1: ER
A4: Nota 28 - Otros Ingresos y gastos operativos
B7: Cifras expresadas en guaraníes | F7: Cifras expresadas en guaraníes
A8: Otros ingresos | B8: 2020-06-30 | C8: 2019-06-30 | E8: Otros gastos | F8: 2020-06-30 | G8: 2019-06-30
A9: Otros ingresos | B9: 9053000699 | C9: 1721966417 | E9: Otros gastos operativos | F9: 3266288321 | G9: 4278797936
A10: Total | B10: =SUM($B$9:B9) -> 9053000699 | C10: 5165899251 | E10: Total | F10: =SUM($F$9:F9) -> 3266288321 | G10: =SUM($G$9:G9) -> 4278797936

Sheet Nota 29
A1: =Indice!C1 -> FRIGORIFICO CONCEPCION S.A. | E1: ER
A5: NOTA 29 - INGRESOS Y GASTOS FINANCIEROS NETOS
A6: Cifras expresadas en guaraníes
A8: Ingresos Financieros netos | B8: 2020-06-30 | C8: 2019-06-30 | E8: Gastos Financieros netos | F8: 2020-06-30 | G8: 2019-06-30
E9: Diferencia de cambio | F9: 21745293493 | G9: 7554651696
E10: Intereses pagados a Bancos | F10: 8891003528 | G10: 21860567318
E11: Intereses pagados por Bonos emitidos | F11: 2255376147 | G11: 7157651854
E12: Intereses pagados por Bonos Internacional | F12: 28132758245 | G12: -
A13: Total ingresos financieros | B13: =SUM($B9:B9) -> 0 | C13: =SUM($C9:C9) -> 0 | E13: Total gastos financieros | F13: =SUM($F9:F12) -> 61024431413 | G13: =SUM($G9:G12) -> 36572870868

Sheet Nota 30
A1: =Indice!C1 -> FRIGORIFICO CONCEPCION S.A. | E1: ER
A3: NO APLICABLE
A5: Nota 34 - Resultado de inversiones en asociadas
A6: Cifras expresadas en guaraníes
A9: Resultado de inversiones en asociadas | B9: 2020-06-30 | C9: 2019-06-30
A10: (Detallar cuenta)
A11: Total | B11: =SUM($B10:B10) -> 0 | C11: =SUM($C10:C10) -> 0

Sheet Nota 31
A1: =Indice!C1 -> FRIGORIFICO CONCEPCION S.A. | E1: ER
A4: Nota 31 - Resultado participación minoritaria
A5: Cifras expresadas en guaraníes
A8: Resultado participación minoritaria | B8: 2020-06-30 | C8: 2019-06-30
A9: (Detallar cuenta)
A10: Total | B10: =SUM($B9:B9) -> 0 | C10: =SUM($C9:C9) -> 0

Sheet Nota 32
A1: =Indice!C1 -> FRIGORIFICO CONCEPCION S.A. | E1: ER
A4: Nota 32 - IMPUESTO A LA RENTA
A5: Cifras expresadas en guaraníes
B7: 2020-06-30 | C7: 2019-06-30
A8: Impuesto a la renta | B8: 10908671085 | C8: 1275961664
A9: Total | B9: =SUM($B8:B8) -> 10908671085 | C9: =SUM($C8:C8) -> 1275961664

Sheet Nota 33
A1: =Indice!C1 -> FRIGORIFICO CONCEPCION S.A. | E1: ER
A3: NO APLICABLE
A5: Nota 33 - Resultado extraordinario neto de impuesto a la renta
A6: Cifras expresadas en guaraníes
B8: 2020-06-30 | C8: 2019-06-30
A9: Conceptos
A10: (Detallar)
A11: Total | B11: =SUM($B9:B10) -> 0 | C11: =SUM($C9:C10) -> 0

Sheet Nota 34
A1: =Indice!C1 -> FRIGORIFICO CONCEPCION S.A. | E1: ER
A3: NO APLICABLE
A5: Nota 34 - Resultado sobre actividades discontinuadas neto de impuesto a la renta
A6: Cifras expresadas en guaraníes
A8: Resultado sobre actividades discontinuadas neto de impuesto a la renta | B8: 2020-06-30 | C8: 2019-06-30
A10: (nueva cuenta a incluir)
A11: Subtotal
A12: - Impuesto a la renta
A13: Total | B13: =SUM($B9:B12) -> 0 | C13: =SUM($C9:C12) -> 0

Sheet Nota 35
A1: =Indice!C1 -> FRIGORIFICO CONCEPCION S.A. | E1: ER
A4: NOTA 35- UTILIDAD NETA DEL AÑO
A5: Cifras expresadas en guaraníes
B7: 2020-06-30 | C7: 2019-06-30
A8: Cantidad de Acciones Ordinarias en Circulación | B8: 0 | C8: 0
A9: Utilidad Neta | B9: =ER!C31 -> 98178039763 | C9: =ER!D31 -> 2833028615
A10: Utilidad Neta por Acción Ordinaria | B10: =IFERROR(B9/B8,0) -> 0 | C10: =IFERROR(C9/C8,0) -> 0

Sheet Nota 36
A1: =Indice!C1 -> FRIGORIFICO CONCEPCION S.A. | E1: Indice
A4: NOTA 36 - ACTIVOS GRAVADOS
A6: Los siguientes bienes de propiedad de la Sociedad han sido hipotecados y prendados en garantía de obligaciones financieras.
A8: Al 30 de junio de 2020
A10: Tipo de Activo | B10: Datos del activo gravado | C10: Tipo de garantía | D10: Importe (Guaraníes) | E10: A favor de
A11: Planta industrial Frigorífica (Concepcion) | B11: Inmuebles (Terrenos y edificios), Maquinarias, muebles y equipos) | C11: Fiduciaria | D11: 235220040246 | E11: Wilmington Trust National Association
A12: Industria de Curtiembre (Concepcion | B12: Inmuebles (Terrenos y edificios), Maquinarias, muebles y equipos) | C12: Fiduciaria
A13: Planta Industrial Ciclo 2 (Trinidad) | B13: Inmuebles (Terrenos y edificios), Maquinarias, muebles y equipos) | C13: Fiduciaria
A14: Industria Encarnacion | B14: Inmuebles (Terrenos y edificios), Maquinarias, muebles y equipos) | C14: Hipotecaria | D14: 6292130338 | E14: Banco Itapúa S.A.E.C.A.
A17: Al 30 de junio de 2019
A19: Tipo de Activo | B19: Datos del activo gravado | C19: Tipo de garantía | D19: Importe (Guaraníes) | E19: A favor de
A20: Planta industrial Frigorífica (Concepcion) | B20: Inmuebles (Terrenos y edificios), Maquinarias, muebles y equipos) | C20: Fiduciaria | D20: 163330015802 | E20: Sudameris Bank S.A.
A21: Industria de Curtiembre (Concepcion | B21: Inmuebles (Terrenos y edificios), Maquinarias, muebles y equipos) | C21: Fiduciaria | D21: 35420869553 | E21: Banco Continental S.A.E.C.A.
A22: Industria Encarnacion | B22: Inmuebles (Terrenos y edificios), Maquinarias, muebles y equipos) | C22: Hipotecaria | D22: 6454425563 | E22: Banco Itapúa S.A.E.C.A.
A24: ..//..

Sheet Nota 37
A1: =Indice!C1 -> FRIGORIFICO CONCEPCION S.A. | E1: Indice
A5: NOTA 37 - CONTINGENCIAS Y COMPROMISOS
A6: (Esta nota debería incluir un breve detalle de contratos con terceros, vigente a la fecha de cierre del ejercicio, cuyo incumplimiento o cláusula específica podrían generar obligaciones contingentes para el cliente).
A7: =IFERROR("Los principales contratos suscriptos por la Sociedad, vigentes al "&DAY(Indice!B6)&" de "&VLOOKUP(MONTH(Indice!B6),Indice!S:T,2,0)&" de "&YEAR(Indice!B6-1)&" son:","Los principales contratos suscriptos por la Sociedad, vigentes al … de … 20X2 son:") -> Los principales contratos suscriptos por la Sociedad, vigentes al … de … 20X2 son:
A8: a)
A9: b)
A13: Al 30 de junio de 2020 no existen situaciones contingentes, ni reclamos que pudieran resultar en la generación de obligaciones para la Sociedad adicionales a las que se presentan en estos estados financieros.

Sheet Nota 38
A1: =Indice!C1 -> FRIGORIFICO CONCEPCION S.A. | D1: Índice
A4: NOTA 38 - IMPUESTO DIFERIDO
A5: Cifras expresadas en guaraníes
B7: 2020-06-30 | C7: 30/062019
A8: Impuestos diferidos | B8: 10003826822688 | C8: 10003826822688
A10: El impuesto diferido es calculado utilizando el método del estado de situación basado en el Balance General, determinado a partir de las diferencias temporarias entre los importes contables de activos y pasivos y los importes utilizados para fines fiscales. El importe de impuesto diferido calculado está basado en la forma esperada de realización o liquidación de los importes contables de activos y pasivos, utilizando la tasa de impuesto aprobada a la fecha de estados financieros.
A12: Un activo por impuesto diferido es reconocido hasta el importe que es probable que futuras ganancias imponibles estarán disponibles, contras la cuales el activo pueda ser utilizado.

Sheet Nota 39
A1: =Indice!C1 -> FRIGORIFICO CONCEPCION S.A. | E1: Indice
A5: NOTA 39 - HECHOS POSTERIORES
A7: Entre la fecha de cierre del ejercicio y la fecha de preparación de estos estados financieros, no han ocurrido hechos significativos de carácter financiero o de otra índole que afecten la situación patrimonial o financiera o los resultados de la Sociedad al 30 de junio de 2020.-

Sheet Nota 40
A1: =Indice!C1 -> FRIGORIFICO CONCEPCION S.A. | C1: Indice
A5: NOTA 40 - SALDOS Y TRANSACCIONES CON PARTES RELACIONADAS
A6: Cifras expresadas en guaraníes
B8: 2020-06-30 | C8: 2019-06-30
A9: ACTIVO
A10: Inversiones temporales | B10: - | C10: -
A11: Cuentas a cobrar comerciales | B11: 7374186132 | C11: 4481840553
A12: Otros créditos | B12: 96092023635 | C12: 43654376408
A13: Total activo | B13: =SUM(B11:B12) -> 103466209767 | C13: =SUM(C11:C12) -> 48136216961
A14: PASIVO
A15: Cuentas por pagar comerciales | B15: 4385641421 | C15: 3003956082
A16: Préstamos a corto plazo | B16: - | C16: -
A17: Provisiones | B17: - | C17: -
A18: Préstamos a largo plazo | B18: - | C18: -
A19: Otros pasivos | B19: 716178806 | C19: 9687210543
A20: Total pasivo | B20: =SUM(B15:B19) -> 5101820227 | C20: =SUM(C15:C19) -> 12691166625
B24: 2020-03-31 | C24: 2019-12-31
A25: Costo de ventas
A26: Compras a ….
A28: Gastos administrativos
A29: Honorarios por servicios
A30: Otros
A31: Gastos financieros
A32: Intereses pagados por préstamos

Sheet Base de Monedas
A1: PYG | B1: Guaraní | C1: Índice
A2: USD | B2: Dólar estadounidense
A3: EUR | B3: Euro
A4: AED | B4: Dírham de los Emiratos Árabes Unidos
A5: AFN | B5: Afgani
A6: ALL | B6: Lek
A7: AMD | B7: Dram armenio
A8: ANG | B8: Florín antillano neerlandés
A9: AOA | B9: Kwanza
A10: ARS | B10: Peso argentino
A11: AUD | B11: Dólar australiano
A12: AWG | B12: Florín arubeño
A13: AZN | B13: Manat azerbaiyano
A14: BAM | B14: Marco convertible
A15: BBD | B15: Dólar de Barbados
A16: BDT | B16: Taka
A17: BGN | B17: Lev búlgaro
A18: BHD | B18: Dinar bareiní
A19: BIF | B19: Franco de Burundi
A20: BMD | B20: Dólar bermudeño
A21: BND | B21: Dólar de Brunéi
A22: BOB | B22: Boliviano
A23: BOV | B23: MVDOL
A24: BRL | B24: Real brasileño
A25: BSD | B25: Dólar bahameño
A26: BTN | B26: Ngultrum
A27: BWP | B27: Pula
A28: BYN | B28: Rublo bielorruso
A29: BZD | B29: Dólar beliceño
A30: CAD | B30: Dólar canadiense
A31: CDF | B31: Franco congoleño
A32: CHE | B32: Euro WIR
A33: CHF | B33: Franco suizo
A34: CHW | B34: Franco WIR
A35: CLF | B35: Unidad de fomento
A36: CLP | B36: Peso chileno
A37: CNY | B37: Yuan chino
A38: COP | B38: Peso colombiano
A39: COU | B39: Unidad de valor real
A40: CRC | B40: Colón costarricense
A41: CUC | B41: Peso convertible
A42: CUP | B42: Peso cubano
A43: CVE | B43: Escudo caboverdiano
A44: CZK | B44: Corona checa
A45: DJF | B45: Franco yibutiano
A46: DKK | B46: Corona danesa
A47: DOP | B47: Peso dominicano
A48: DZD | B48: Dinar argelino
A49: EGP | B49: Libra egipcia
A50: ERN | B50: Nakfa
A51: ETB | B51: Birr etíope
A52: FJD | B52: Dólar fiyiano
A53: FKP | B53: Libra malvinense
A54: GBP | B54: Libra esterlina
A55: GEL | B55: Lari
A56: GHS | B56: Cedi ghanés
A57: GIP | B57: Libra de Gibraltar
A58: GMD | B58: Dalasi
A59: GNF | B59: Franco guineano
A60: GTQ | B60: Quetzal
A61: GYD | B61: Dólar guyanés
A62: HKD | B62: Dólar de Hong Kong
A63: HNL | B63: Lempira
A64: HRK | B64: Kuna
A65: HTG | B65: Gourde
A66: HUF | B66: Forinto
A67: IDR | B67: Rupia indonesia
A68: ILS | B68: Nuevo shéquel israelí
A69: INR | B69: Rupia india
A70: IQD | B70: Dinar iraquí
A71: IRR | B71: Rial iraní
A72: ISK | B72: Corona islandesa
A73: JMD | B73: Dólar jamaiquino
A74: JOD | B74: Dinar jordano
A75: JPY | B75: Yen
A76: KES | B76: Chelín keniano
A77: KGS | B77: Som
A78: KHR | B78: Riel
A79: KMF | B79: Franco comorense
A80: KPW | B80: Won norcoreano
A81: KRW | B81: Won
A82: KWD | B82: Dinar kuwaití
A83: KYD | B83: Dólar de las Islas Caimán
A84: KZT | B84: Tenge
A85: LAK | B85: Kip
A86: LBP | B86: Libra libanesa
A87: LKR | B87: Rupia de Sri Lanka
A88: LRD | B88: Dólar liberiano
A89: LSL | B89: Loti
A90: LYD | B90: Dinar libio
A91: MAD | B91: Dírham marroquí
A92: MDL | B92: Leu moldavo
A93: MGA | B93: Ariary malgache
A94: MKD | B94: Denar
A95: MMK | B95: Kyat
A96: MNT | B96: Tugrik
A97: MOP | B97: Pataca
A98: MRU | B98: Uguiya
A99: MUR | B99: Rupia de Mauricio
A100: MVR | B100: Rufiyaa
A101: MWK | B101: Kwacha
A102: MXN | B102: Peso mexicano
A103: MXV | B103: Unidad de Inversión (UDI) mexicana
A104: MYR | B104: Ringgit malayo
A105: MZN | B105: Metical mozambiqueño
A106: NAD | B106: Dólar namibio
A107: NGN | B107: Naira
A108: NIO | B108: Córdoba
A109: NOK | B109: Corona noruega
A110: NPR | B110: Rupia nepalí
A111: NZD | B111: Dólar neozelandés
A112: OMR | B112: Rial omaní
A113: PAB | B113: Balboa
A114: PEN | B114: Sol
A115: PGK | B115: Kina
A116: PHP | B116: Peso filipino
A117: PKR | B117: Rupia pakistaní
A118: PLN | B118: Złoty
A119: QAR | B119: Riyal qatarí
A120: RON | B120: Leu rumano
A121: RSD | B121: Dinar serbio
A122: RUB | B122: Rublo ruso
A123: RWF | B123: Franco ruandés
A124: SAR | B124: Riyal saudí
A125: SBD | B125: Dólar de las Islas Salomón
A126: SCR | B126: Rupia seychelense
A127: SDG | B127: Dinar sudanés
A128: SEK | B128: Corona sueca
A129: SGD | B129: Dólar de Singapur
A130: SHP | B130: Libra de Santa Elena
A131: SLL | B131: Leone
A132: SOS | B132: Chelín somalí
A133: SRD | B133: Dólar surinamés
A134: SSP | B134: Libra sursudanesa
A135: STN | B135: Dobra
A136: SVC | B136: Colon Salvadoreño
A137: SYP | B137: Libra siria
A138: SZL | B138: Lilangeni
A139: THB | B139: Baht
A140: TJS | B140: Somoni tayiko
A141: TMT | B141: Manat turcomano
A142: TND | B142: Dinar tunecino
A143: TOP | B143: Paʻanga
A144: TRY | B144: Lira turca
A145: TTD | B145: Dólar de Trinidad y Tobago
A146: TWD | B146: Nuevo dólar taiwanés
A147: TZS | B147: Chelín tanzano
A148: UAH | B148: Grivna
A149: UGX | B149: Chelín ugandés
A150: USN | B150: Dólar estadounidense (Siguiente día)
A151: UYI | B151: Peso en Unidades Indexadas (Uruguay)
A152: UYU | B152: Peso uruguayo
A153: UYW | B153: Unidad Previsional
A154: UZS | B154: Som uzbeko
A155: VES7​ | B155: Bolívar soberano
A156: VND | B156: Dong vietnamita
A157: VUV | B157: Vatu
A158: WST | B158: Tala
A159: XAF | B159: Franco CFA de África Central
A160: XAG | B160: Plata (una onza troy)
A161: XAU | B161: Oro (una onza troy)
A162: XBA | B162: Unidad compuesta europea (EURCO) (Unidad del mercados de bonos)
A163: XBB | B163: Unidad Monetaria europea (E.M.U.-6) (Unidad del mercado de bonos)
A164: XBC | B164: Unidad europea de cuenta 9 (E.U.A.-9) (Unidad del mercado de bonos)
A165: XBD | B165: Unidad europea de cuenta 17 (E.U.A.-17) (Unidad del mercado de bonos)
A166: XCD | B166: Dólar del Caribe Oriental
A167: XDR | B167: Derechos especiales de giro
A168: XOF | B168: Franco CFA de África Occidental
A169: XPD | B169: Paladio (una onza troy)
A170: XPF | B170: Franco CFP
A171: XPT | B171: Platino (una onza troy)
A172: XSU | B172: SUCRE
A173: XTS | B173: Reservado para pruebas
A174: XUA | B174: Unidad de cuenta BAD
A175: XXX | B175: Sin divisa
A176: YER | B176: Rial yemení
A177: ZAR | B177: Rand
A178: ZMW | B178: Kwacha zambiano
A179: ZWL | B179: Dólar zimbabuense
